Workbook

Sheet 100Hz B4 Model
B3: Reference 100Hz Butterworth Ported Loudspeaker Model
B5: Sheet Password: | C5: Opensesame
B9: Parameter Input | C9: Symbol | D9: Units | E9: Value
B11: Physical Parameters
B12: Air Density | C12: Rho | D12: Kg/m^3 | E12: 1.204
B13: Speed of Sound | C13: SS | D13: m/s | E13: 343.2
B15: Driver T/S Input Parameters
B16: Voice Coil Resistance | C16: Re | D16: W | E16: 6
B17: Voice Coil Inductance | C17: Le | D17: H | E17: 0
B18: Driver Resonant Frequency | C18: Fs | D18: Hz | E18: 100
B19: Driver Mechanical Q | C19: Qms | D19: - | E19: 3
B20: Driver Electrical Q | C20: Qes | D20: - | E20: 0.4679408138
B21: Driver Total Q | C21: Qts | D21: - | E21: 0.4048
B22: Driver Cone Area | C22: Sd | D22: m^2 | E22: 0.0056
B23: Driver Equivalent Volume | C23: Vas | D23: m^3 | E23: 0.004464818647
B24: Driver Maximum Excursion | C24: Xdmax | D24: mm | E24: 4
B25: Calculated Driver Parameters
B26: Driver Mechanical Stiffness | C26: Kd | D26: N/m | E26: =(Rho*SS^2*E22^2)/Vas -> 996.0778347
B27: Driver Moving Mass | C27: Md | D27: Kg | E27: =E26/(2*PI()*Fs)^2 -> 0.00252309463
B28: Driver Viscous Damping | C28: Dd | D28: Kg/s | E28: =SQRT(Md*Kd)/Qms -> 0.5284357036
B29: Driver Force Factor | C29: Bl | D29: N/A | E29: =SQRT(Re*SQRT(Md*Kd)/Qes) -> 4.508549747
B30: Driver One Volt Sensitivity | C30: SensV | D30: dB/V*m | E30: =79.6+20*LOG10((Sd*Bl)/(Md*Re)) -> 84.04280207
B32: Box Input Parameters
B33: Box Volume | C33: Vb | D33: m^3 | E33: 0.004205859165
B34: Box Tuning Frequency | C34: Fb | D34: Hz | E34: 100
B35: Box Leakage Q | C35: Qbl | D35: - | E35: 7
B37: Port Input Parameters
B38: Port Area | C38: Sp | D38: m^2 | E38: 0.002141921426
B39: Port Diameter | C39: Dp | D39: m | E39: 0.0522224
B40: Port Maximum Velocity | C40: Vpm | D40: m/s | E40: 20
B42: Calculated Parameters
B43: Box Leakage Viscous Damping | C43: Dbl | D43: Kg/s | E43: =(Qbl*Rho*SS^2*Sp^2)/(2*PI()*Fb*Vb) -> 1.723421718
B44: Port Moving Mass | C44: Mp | D44: Kg | E44: =Kbp/(2*PI()*Fb)^2 -> 0.0003918444077
B45: Box Stiffness to Port | C45: Kbp | D45: N/m | E45: =(Rho*SS^2*Sp^2)/Vb -> 154.6939716
B46: Port Length | C46: Lp | D46: m | E46: =(2984*Sp)/(Vb*Fb^2)-1.46*SQRT(Sp/PI()) -> 0.1138440664
B50: Design Check
B51: Max 1 Volt Driver Displacement | C51: 1VXd | D51: mm | E51: =MAX(J121:J271) -> 0.1867549183
B52: Max Drive Voltage Based on Woofer | C52: MVd | D52: V | E52: =Xdmax/E51 -> 21.41844528
B53: Max 1 Volt Port Velocity | C53: 1VVp | D53: m/s | E53: =MAX(L121:L271) -> 0.9353548903
B54: Max Drive Voltage Based on Port | C54: MVp | D54: V | E54: =Vpm/E53 -> 21.38225844
B55: Maximum Drive Voltage | C55: MaxV | D55: V | E55: =IF(MVd<MVp,MVd,MVp) -> 21.38225844
B56: Recommedned Port Area | C56: SpR | D56: m^2 | E56: =Sp*MVd/MVp -> 0.002145546365
B57: Recommended Port Length | C57: LpR | D57: m | E57: =(2984*SpR)/(Vb*Fb^2)-1.46*SQRT(SpR/PI()) -> 0.1140690058
B58: Max Port Length that will Comfortably Fit | C58: LpM | D58: m | E58: =0.85*Vb^(1/3) -> 0.1372051778
F119: One Volt Solution for Displacements, Velocities, Sound Pressures, and Impedance | R119: Maximum Output
C120: Freq [Hz] | D120: Freq [rad/s] | E120: Im Freq | F120: Bw | G120: Xd 1 | H120: Vd1 | I120: |Xd 1| [mm] | J120: Max |Xd1| | K120: Vp 1 | L120: |VP 1| [m/s] | M120: SPd 1 | N120: SPp 1 | O120: SPL 1 | P120: |Zin| | Q120: Ph Zin | R120: XdV | S120: VpV | T120: SPdM | U120: SPpM | V120: SPLM
C121: 10 | D121: =2*PI()*C121 -> 62.83185307 | E121: =COMPLEX(0,2*PI()*C121) -> 62.8318530717959i | F121: =IMPRODUCT(IMDIV(COMPLEX(0,Sd*Dbl/Sp*D121),COMPLEX(Kbp,Dbl*D121)),IMSUM(IMDIV(IMPRODUCT(COMPLEX(Kbp,0),IMSUB(COMPLEX(1,0),IMDIV(COMPLEX(Kbp,0),COMPLEX(Kbp,Dbl*D121)))),IMSUB(Mp*D121^2,IMPRODUCT(COMPLEX(Kbp,0),IMSUB(COMPLEX(1,0),IMDIV(COMPLEX(Kbp,0),COMPLEX(Kbp,Dbl*D121)))))),COMPLEX(1,0))) -> -0.0264033404399997+0.00038100058354603i | G121: =IMDIV(COMPLEX(Bl,0),IMPRODUCT(COMPLEX(Re,Le*D121),IMSUM(COMPLEX(Kd-Md*D121^2,0),IMPRODUCT(E121,IMSUM(COMPLEX(Dd,0),IMDIV(COMPLEX(Bl^2,0),COMPLEX(Re,Le*D121)))),IMPRODUCT(COMPLEX(Sd*Kbp/Sp,0),F121)))) -> 0.000724202484800064-0.000182803630711149i | H121: =IMPRODUCT(E121,G121) -> 0.0114858908658337+0.0455029841191871i | I121: =1000*IMABS(G121) -> 0.7469179382 | J121: =IF(AND(I122>I121,I122>I123),I122,0) -> 0 | K121: =IMPRODUCT(E121,IMPRODUCT(IMDIV(COMPLEX(0,Sd*Kbp*Dbl/Sp*D121),IMPRODUCT(COMPLEX(Kbp,Dbl*D121),IMSUB(COMPLEX(Mp*D121^2,0),IMPRODUCT(COMPLEX(Kbp,0),IMSUB(COMPLEX(1,0),IMDIV(COMPLEX(Kbp,0),COMPLEX(Kbp,Dbl*D121))))))),G121)) -> -0.0320602550289931-0.119705464961222i | L121: =IMABS(K121) -> 0.1239244056 | M121: =79.6+20*LOG10(IMABS(IMPRODUCT(COMPLEX(Sd*D121,0),H121))) -> 43.95641307 | N121: =79.6+20*LOG10(IMABS(IMPRODUCT(COMPLEX(Sp*D121,0),K121))) -> 44.04280496 | O121: =79.6+20*LOG10(IMABS(IMSUM(IMPRODUCT(COMPLEX(Sd*D121,0),H121),IMPRODUCT(COMPLEX(Sp*D121,0),K121)))) -> 8.872706843 | P121: =IMABS(IMDIV(COMPLEX(Re,D121*Le),IMSUB(COMPLEX(1,0),IMPRODUCT(COMPLEX(Bl,0),H121)))) -> 6.184581886 | Q121: =180/PI()*IMARGUMENT(IMDIV(COMPLEX(Re,D121*Le),IMSUB(COMPLEX(1,0),IMPRODUCT(COMPLEX(Bl,0),H121)))) -> 12.20814294 | R121: =MaxV*I121 -> 15.97079239 | S121: =MaxV*L121 -> 2.649783667 | T121: =20*LOG10(MaxV)+M121 -> 70.55748456 | U121: =20*LOG10(MaxV)+N121 -> 70.64387645 | V121: =20*LOG10(MaxV)+O121 -> 35.47377833
C122: 10.23 | D122: =2*PI()*C122 -> 64.27698569 | E122: =COMPLEX(0,2*PI()*C122) -> 64.2769856924472i | F122: -0.0276445808250122+0.000408278556124693i | G122: 0.000722812943862446-0.000186839778795584i | H122: 0.0120094977884238+0.0464602372509621i | I122: =1000*IMABS(G122) -> 0.746570596 | J122: 0 | K122: -0.0335362183811155-0.122258491013329i | L122: =IMABS(K122) -> 0.1267746685 | M122: 44.34739824 | N122: 44.43783042 | O122: 9.531195181 | P122: 6.193412136 | Q122: 12.48714565 | R122: 15.96336543 | S122: 2.710728725 | T122: 70.94846973 | U122: 71.03890191 | V122: 36.13226667
C123: 10.47 | D123: 65.78495017 | E123: 65.7849501661703i | F123: -0.0289711412545629+0.000438128300343869i | G123: 0.000721330746713117-0.000191039257858999i | H123: 0.0125675080580364+0.0474527072258488i | I123: =1000*IMABS(G123) -> 0.7461997348 | J123: 0 | K123: -0.0351105879563679-0.12490801507803i | L123: 0.1297488559 | M123: 44.74592435 | N123: 44.84067245 | O123: 10.20478633 | P123: 6.202864793 | Q123: 12.7781422 | R123: 15.95543558 | S123: 2.77432357 | T123: 71.34699584 | U123: 71.44174394 | V123: 36.80585782
C124: 10.72 | D124: 67.35574649 | E124: 67.3557464929652i | F124: -0.0303871227619009+0.000470767059738824i | G124: 0.00071975188725633-0.00019540021867515i | H124: 0.0131613275937534+0.0484794256558706i | I124: 0.7458042804 | J124: 0 | K124: -0.0367876157321036-0.127651824193328i | L124: 0.1328469679 | M124: 45.15124412 | N124: 45.25059671 | O124: 10.89239969 | P124: 6.212972277 | Q124: 13.08111074 | R124: 15.94697987 | S124: 2.840568202 | T124: 71.75231561 | U124: 71.8516682 | V124: 37.49347118
C125: 10.96 | D125: 68.86371097 | E125: 68.8637109666883i | F125: -0.0317793451733323+0.00050362335155818i | G125: 0.000718202783551273-0.000199573495431042i | H125: 0.013743371505975+0.0494581089019459i | I125: 0.7454158694 | J125: 0 | K125: -0.0384330216631205-0.130270062303145i | L125: 0.1358211555 | M125: 45.53135013 | N125: 45.63522757 | O125: 11.53961207 | P125: 6.222927965 | Q125: 13.37180944 | R125: 15.93867477 | S125: 2.904163049 | T125: 72.13242162 | U125: 72.23629906 | V125: 38.14068356
C126: 11.22 | D126: 70.49733915 | E126: 70.497339146555i | F126: -0.0333240478368369+0.000540946773426216i | G126: 0.00071648779456934-0.000204079575768704i | H126: 0.0143870670658514+0.050510483048122i | I126: 0.7449853911 | J126: 0 | K126: -0.0402546059814162-0.133088601956122i | L126: 0.1390431921 | M126: 45.93362468 | N126: 46.0425198 | O126: 12.22712194 | P126: 6.233994738 | Q126: 13.68656099 | R126: 15.92947017 | S126: 2.973057469 | T126: 72.53469617 | U126: 72.64359129 | V126: 38.82819343
C127: 11.48 | D127: 72.13096733 | E127: 72.1309673264217i | F127: -0.0349067946001815+0.000580116814145503i | G127: 0.000714734677356446-0.000208569744070823i | H127: 0.0150443373948527+0.0515545036594584i | I127: 0.7445448255 | J127: 0 | K127: -0.0421166662940216-0.135888122114723i | L127: 0.1422652288 | M127: 46.32644779 | N127: 46.44048116 | O127: 12.90105735 | P127: 6.245356726 | Q127: 14.00112825 | R127: 15.92004988 | S127: 3.041951889 | T127: 72.92751928 | U127: 73.04155265 | V127: 39.50212884
C128: 11.75 | D128: 73.82742736 | E128: 73.8274273593601i | F128: -0.0365908232144719+0.000622801659363299i | G128: 0.000712873930307256-0.000213215392333784i | H128: 0.0157411438894199+0.0526296483061405i | I128: 0.7440766386 | J128: 0 | K128: -0.0440930191433758-0.138774724959709i | L128: 0.1456111899 | M128: 46.72482333 | N128: 46.84432042 | O128: 13.58716872 | P128: 6.25747103 | Q128: 14.32759317 | R128: 15.91003899 | S128: 3.113496095 | T128: 73.32589482 | U128: 73.44539191 | V128: 40.18824021
C129: 12.02 | D129: 75.52388739 | E129: 75.5238873922986i | F129: -0.0383161693313215+0.000667588713231023i | G129: 0.000710972384823388-0.000217843109221021i | H129: 0.0164523584499966+0.0536953983304355i | I129: 0.7435975741 | J129: 0 | K129: -0.0461126764701438-0.141639874054485i | L129: 0.1489571511 | M129: 47.11389327 | N129: 47.23898457 | O129: 14.25987472 | P129: 6.269909633 | Q129: 14.65384689 | R129: 15.89979551 | S129: 3.185040301 | T129: 73.71496476 | U129: 73.84005606 | V129: 40.86094621
C130: 12.3 | D130: 77.28317928 | E130: 77.2831792783089i | F130: -0.0401492230187277+0.000716316354603234i | G130: 0.00070895749843201-0.000222622864941371i | H130: 0.0172050027827147+0.0547904894520224i | I130: 0.7430892777 | J130: 0 | K130: -0.0482526814351348-0.144587967178296i | L130: 0.1524270367 | M130: 47.50797963 | N130: 47.63901044 | O130: 14.94394024 | P130: 6.283154851 | Q130: 14.99195404 | R130: 15.88892698 | S130: 3.259234293 | T130: 74.10905112 | U130: 74.24008192 | V130: 41.54501173
C131: 12.59 | D131: 79.10530302 | E131: 79.105303017391i | F131: -0.042094948913103+0.000769301780382366i | G131: 0.000706824791704368-0.000227552089556801i | H131: 0.0180005769966312+0.0559135893279783i | I131: 0.7425504963 | J131: 0 | K131: -0.0505177838165321-0.147615914289459i | L131: 0.1560208468 | M131: 47.90650433 | N131: 48.04383529 | O131: 15.63850491 | P131: 6.297248269 | Q131: 15.3418817 | R131: 15.87740662 | S131: 3.336078069 | T131: 74.50757582 | U131: 74.64490678 | V131: 42.2395764
C132: 12.88 | D132: 80.92742676 | E132: 80.9274267564731i | F132: -0.0440889077251217+0.000824920877539388i | G132: 0.00070464563545205-0.000232459229511911i | H132: 0.0188123272701913+0.0570251580523142i | I132: 0.7419991678 | J132: 0 | K132: -0.0528321754400883-0.150617395756475i | L132: 0.1596146568 | M132: 48.29565816 | N132: 48.4394407 | O132: 16.31949387 | P132: 6.311727559 | Q132: 15.69154182 | R132: 15.86561797 | S132: 3.412921843 | T132: 74.89672965 | U132: 75.04051219 | V132: 42.92056536
C133: 13.18 | D133: 82.81238235 | E133: 82.8123823486269i | F133: -0.0462025998965474+0.000885307847424483i | G133: 0.000702342693010596-0.000237511831266376i | H133: 0.0196689205831537+0.0581626716333578i | I133: 0.7414156246 | J133: 0 | K133: -0.0552779846300444-0.153693898457873i | L133: 0.1633323912 | M133: 48.68880637 | N133: 48.83942268 | O133: 17.01028182 | P133: 6.327116798 | Q133: 16.05296849 | R133: 15.8531405 | S133: 3.4924154 | T133: 75.28987786 | U133: 75.44049417 | V133: 43.61135331
C134: 13.49 | D134: 84.76016979 | E134: 84.7601697938526i | F134: -0.0484414560824523+0.000950839446549268i | G134: 0.000699911282189241-0.000242706924934129i | H134: 0.0205718801675606+0.0593245991189931i | I134: 0.7407985248 | J134: 0 | K134: -0.0578601725498162-0.156841841920027i | L134: 0.1671740499 | M134: 49.08543544 | N134: 49.24328434 | O134: 17.71009088 | P134: 6.343462942 | Q134: 16.42612194 | R134: 15.83994551 | S134: 3.574558739 | T134: 75.68650693 | U134: 75.84435583 | V134: 44.31116237
C135: 13.8 | D135: 86.70795724 | E135: 86.7079572390783i | F135: -0.0507361799360515+0.0010196456796399i | G135: 0.000697427601062969-0.00024787509175435i | H135: 0.0214927428564688+0.0604725226103209i | I135: 0.7401670891 | J135: 0 | K135: -0.0604978058864416-0.159957456729021i | L135: 0.1710157083 | M135: 49.47271414 | N135: 49.63796987 | O135: 18.39625981 | P135: 6.360265876 | Q135: 16.79893848 | R135: 15.82644399 | S135: 3.656702072 | T135: 76.07378563 | U135: 76.23904136 | V135: 44.9973313
C136: 14.13 | D136: 88.78140839 | E136: 88.7814083904476i | F136: -0.0532406478874949+0.00109659477803062i | G136: 0.000694726570798695-0.000253346452194187i | H136: 0.0224924548365231+0.0616788034017741i | I136: 0.7394791633 | J136: 0 | K136: -0.0633661807732416-0.163237751638759i | L136: 0.1751052153 | M136: 49.87516057 | N136: 50.04849293 | O136: 19.11233817 | P136: 6.378661365 | Q136: 17.19542485 | R136: 15.81173458 | S136: 3.744144968 | T136: 76.47623206 | U136: 76.64956442 | V136: 45.71340966
C137: 14.45 | D137: 90.79202769 | E137: 90.792027688745i | F137: -0.0557302993355688+0.00117496619562462i | G137: 0.000692051475063262-0.000258621594009599i | H137: 0.0234807789242269+0.0628327566859805i | I137: 0.7387965708 | J137: 0 | K137: -0.0662069277505384-0.166382069980303i | L137: 0.1790707974 | M137: 50.25616658 | N137: 50.43752037 | O137: 19.79315924 | P137: 6.397006954 | Q137: 17.57950655 | R137: 15.79713921 | S137: 3.82893807 | T137: 76.85723807 | U137: 77.03859186 | V137: 46.39423073
C138: 14.79 | D138: 92.92831069 | E138: 92.9283106931861i | F138: -0.0584418050322772+0.00126240624380895i | G138: 0.000689149239155544-0.000264192903988333i | H138: 0.0245510002647629+0.0640414746102192i | I138: 0.7380545809 | J138: 0 | K138: -0.0692887775364502-0.169682566849783i | L138: 0.1832842279 | M138: 50.65145184 | N138: 50.84153344 | O138: 20.50251102 | P138: 6.417054474 | Q138: 17.98715796 | R138: 15.78127379 | S138: 3.919030729 | T138: 77.25252333 | U138: 77.44260493 | V138: 47.10358251
C139: 15.14 | D139: 95.12742555 | E139: 95.1274255506989i | F139: -0.0613047656829529+0.00135704053229135i | G139: 0.00068609755145045-0.000269891217805167i | H139: 0.0256740567285485+0.0652666937461195i | I139: 0.7372727579 | J139: 0 | K139: -0.0725292069568398-0.173035753984324i | L139: 0.187621582 | M139: 51.04855402 | N139: 51.24784144 | O139: 21.21825819 | P139: 6.43829812 | Q139: 18.40631393 | R139: 15.76455665 | S139: 4.011773155 | T139: 77.64962551 | U139: 77.84891293 | V139: 47.81932968
C140: 15.49 | D140: 97.32654041 | E140: 97.3265404082118i | F140: -0.0642409055708955+0.00145650690890483i | G140: 0.00068298129437222-0.000275551334296602i | H140: 0.0268184580719549+0.0664722065447707i | I140: 0.736472665 | J140: 0 | K140: -0.0758380637767455-0.176342907011553i | L140: 0.1919589351 | M140: 51.43614463 | N140: 51.64486307 | O140: 21.9199337 | P140: 6.46016663 | Q140: 18.82495988 | R140: 15.74744886 | S140: 4.104515561 | T140: 78.03721612 | U140: 78.24593456 | V140: 48.52100518
C141: 15.85 | D141: 99.58848712 | E141: 99.5884871187964i | F141: -0.0673377566059499+0.00156401067021087i | G141: 0.000679709128892232-0.000281332467840277i | H141: 0.0280174748496106+0.0676912038272124i | I141: 0.7356306528 | J141: 0 | K141: -0.0793123094946308-0.179695456341037i | L141: 0.1964202115 | M141: 51.82532229 | N141: 52.04397689 | O141: 22.62757814 | P141: 6.483322422 | Q141: 19.25501553 | R141: 15.72944474 | S141: 4.199907725 | T141: 78.42639378 | U141: 78.64504838 | V141: 49.22864963
C142: 16.22 | D142: 101.9132657 | E142: 101.913265682453i | F142: -0.0706023381059124+0.00168016009757527i | G142: 0.000676275943412754-0.000287230269061952i | H142: 0.0292725747229532+0.0689214898956756i | I142: 0.7347451117 | J142: 0 | K142: -0.0829573388643824-0.183088107281607i | L142: 0.2010054106 | M142: 52.21572338 | N142: 52.44484003 | O142: 23.34060679 | P142: 6.507833294 | Q142: 19.69641261 | R142: 15.71050987 | S142: 4.297949638 | T142: 78.81679487 | U142: 79.04591152 | V142: 49.94167828
C143: 16.6 | D143: 104.3008761 | E143: 104.300876099181i | F143: -0.0740419542289873+0.00180560737422965i | G143: 0.000672676571947496-0.000293240148122841i | H143: 0.0305852043566659+0.0701607557855176i | I143: 0.7338143872 | J143: 0 | K143: -0.0867785991830633-0.18651526339139i | L143: 0.2057145322 | M143: 52.60700324 | N143: 52.84712928 | O143: 24.05845977 | P143: 6.533771065 | Q143: 20.14907722 | R143: 15.69060888 | S143: 4.398641293 | T143: 79.20807473 | U143: 79.44820077 | V143: 50.65953126
C144: 16.98 | D144: 106.6884865 | E144: 106.688486515909i | F144: -0.0775701552890294+0.00193749219063884i | G144: 0.000669003454637891-0.000299201070273985i | H144: 0.0319213093514716+0.0713749660492312i | I144: 0.7328621308 | J144: 0 | K144: -0.0906779181337926-0.189883196353946i | L144: 0.2104236515 | M144: 52.98890833 | N144: 53.24031284 | O144: 24.76226493 | P144: 6.560497745 | Q144: 20.60104506 | R144: 15.67024748 | S144: 4.499332898 | T144: 79.58997982 | U144: 79.84138433 | V144: 51.36333642
C145: 17.38 | D145: 109.2017606 | E145: 109.201760638781i | F145: -0.0813804658575498+0.00208349569720019i | G145: 0.000665058058989778-0.000305421730677116i | H145: 0.0333525907272847+0.072625510968694i | I145: 0.731836495 | J145: 0 | K145: -0.0948660057442372-0.193363002608183i | L145: 0.2153806162 | M145: 53.38122742 | N145: 53.64479582 | O145: 25.48854963 | P145: 6.589499845 | Q145: 21.07601837 | R145: 15.64831707 | S145: 4.605323999 | T145: 79.98229891 | U145: 80.24586731 | V145: 52.08962112
C146: 17.78 | D146: 111.7150348 | E146: 111.715034761653i | F146: -0.0852904299749068+0.00223709794062784i | G146: 0.000661032442873511-0.000311585868645183i | H146: 0.0348088261469365+0.0738472623341947i | I146: 0.7307870032 | J146: 0 | K146: -0.0991389355553862-0.196774285501233i | L146: 0.2203375773 | M146: 53.76404184 | N146: 54.0400746 | O146: 26.20049697 | P146: 6.619410865 | Q146: 21.55015733 | R146: 15.62587657 | S146: 4.711315023 | T146: 80.36511333 | U146: 80.64114609 | V146: 52.80156846
C147: 18.2 | D147: 114.3539726 | E147: 114.353972590668i | F147: -0.0895040233020598+0.00240682838942563i | G147: 0.000656720072809408-0.0003179961195366i | H147: 0.0363641195374271+0.0750985492057885i | I147: 0.729659363 | J147: 0 | K147: -0.103715865314271-0.200280766296543i | L147: 0.225542382 | M147: 54.15621399 | N147: 54.44565909 | O147: 26.93323478 | P147: 6.651816405 | Q147: 22.0470684 | R147: 15.60176508 | S147: 4.822605501 | T147: 80.75728548 | U147: 81.04673058 | V147: 53.53430627
C148: 18.62 | D148: 116.9929104 | E148: 116.992910419684i | F148: -0.0938293280492797+0.00258550056844045i | G148: 0.000652321063676922-0.000324341459931871i | H148: 0.0379456513671989+0.0763169397676271i | I148: 0.728505424 | J148: 0 | K148: -0.108384331474516-0.20370836580079i | L148: 0.2307471811 | M148: 54.53879813 | N148: 54.84198969 | O148: 27.65141241 | P148: 6.685267813 | Q148: 22.542982 | R148: 15.57709125 | S148: 4.933895862 | T148: 81.13986962 | U148: 81.44306118 | V148: 54.2524839
C149: 19.05 | D149: 119.6946801 | E149: 119.694680101771i | F149: -0.0983743805067996+0.0027780029184933i | G149: 0.00064772855368504-0.000330769264030552i | H149: 0.0395913212456351+0.0775296620261137i | I149: 0.7272967656 | J149: 0 | K149: -0.113257674674696-0.207134083307598i | L149: 0.2360758974 | M149: 54.9209876 | N149: 55.23860066 | O149: 28.37220931 | P149: 6.720624158 | Q149: 23.04962572 | R149: 15.55124741 | S149: 5.047835851 | T149: 81.52205909 | U149: 81.83967215 | V149: 54.9732808
C150: 19.5 | D150: 122.5221135 | E150: 122.522113490002i | F150: -0.103258518537161+0.00299018924827258i | G150: 0.000642827396070096-0.000337420191149226i | H150: 0.0413414349538036+0.0787605711757828i | I150: 0.7260023736 | J150: 0 | K150: -0.118457970825715-0.210626724114268i | L150: 0.2416524524 | M150: 55.31110054 | N150: 55.64418444 | O150: 29.11147064 | P150: 6.758854891 | Q150: 23.57861629 | R150: 15.52357038 | S150: 5.167075191 | T150: 81.91217203 | U150: 82.24525593 | V150: 55.71254213
C151: 19.95 | D151: 125.3495469 | E151: 125.349546878233i | F151: -0.108274519846716+0.00321373111754011i | G151: 0.000637830239614528-0.000343991993582945i | H151: 0.0431192405253622+0.0799517315209159i | I151: 0.7246777948 | J151: 0 | K151: -0.123759484715012-0.214022818859162i | L151: 0.2472289972 | M151: 55.69157036 | N151: 56.04051422 | O151: 29.83594404 | P151: 6.798375149 | Q151: 24.10630587 | R151: 15.4952479 | S151: 5.286314312 | T151: 82.29264185 | U151: 82.64158571 | V151: 56.43701553
C152: 20.42 | D152: 128.302644 | E152: 128.302643972607i | F152: -0.11365568452571+0.00345976261904937i | G152: 0.000632509844999192-0.000350769705508153i | H152: 0.0450046806421888+0.0811526854521002i | I152: 0.7232621173 | J152: 0 | K152: -0.129403170366757-0.217464549657712i | L152: 0.2530533755 | M152: 56.07909915 | N152: 56.44502552 | O152: 30.57746211 | P152: 6.84106511 | Q152: 24.65599573 | R152: 15.46497751 | S152: 5.410852675 | T152: 82.68017064 | U152: 83.04609701 | V152: 57.1785336
C153: 20.89 | D153: 131.2557411 | E153: 131.255741066982i | F153: -0.119183718466255+0.0037190804151873i | G153: 0.000627087538936883-0.00035745763901237i | H153: 0.0469183673086224+0.0823088396370305i | I153: 0.7218135114 | J153: 0 | K153: -0.135154111948821-0.220796398230257i | L153: 0.2588777384 | M153: 56.45699302 | N153: 56.84033099 | O153: 31.30411302 | P153: 6.885238699 | Q153: 25.20413254 | R153: =MaxV*I153 -> 15.43400305 | S153: =MaxV*L153 -> 5.535390708 | T153: =20*LOG10(MaxV)+M153 -> 83.05806451 | U153: =20*LOG10(MaxV)+N153 -> 83.44140248 | V153: 57.90518451
C154: 21.38 | D154: 134.3345019 | E154: 134.3345018675i | F154: -0.125105115488823+0.00400409669179807i | G154: 0.000621327585667529-0.00036433269844033i | H154: 0.0489424515590238+0.0834657317171839i | I154: 0.7202682027 | J154: 0 | K154: -0.14126216931723-0.224150537545931i | L154: 0.2649499273 | M154: 56.84114816 | N154: 57.24309818 | O154: 32.04648891 | P154: 6.932917289 | Q154: 25.77386165 | R154: 15.40096086 | S154: 5.665227819 | T154: 83.44221965 | U154: 83.84416967 | V154: 58.6475604
C155: 21.88 | D155: 137.4760945 | E155: 137.476094521089i | F155: -0.131315698335847+0.00431093272124957i | G155: 0.00061533933221675-0.000371243510878708i | H155: 0.0510371079919022+0.0845944481983737i | I155: 0.7186544637 | J155: 0 | K155: -0.147611169194705-0.227444727215447i | L155: 0.2711460146 | M155: 57.22325053 | N155: 57.64467893 | O155: 32.78866238 | P155: 6.983330691 | Q155: 26.35330545 | R155: 15.36645547 | S155: 5.797714159 | T155: 83.82432202 | U155: 84.24575042 | V155: 59.38973387
C156: 22.39 | D156: 140.680519 | E156: 140.680519027751i | F156: -0.137827818305388+0.00464118967098701i | G156: 0.000609117976869152-0.000378181641010967i | H156: 0.0532027895441894+0.0856910331350859i | I156: 0.7169700575 | J156: 0 | K156: -0.15420598761767-0.230668358255131i | L156: 0.2774659945 | M156: 57.60313939 | N156: 58.04494524 | O156: 33.53034308 | P156: 7.036643651 | Q156: 26.94224783 | R156: 15.33043907 | S156: 5.932849604 | T156: 84.20421088 | U156: 84.64601673 | V156: 60.13141457
C157: 22.91 | D157: 143.9477754 | E157: 143.947775387484i | F157: -0.144654367234517+0.00499658563115966i | G157: 0.000602658853447523-0.000385138307182324i | H157: 0.055439802535397+0.0867514012713427i | I157: 0.7152127021 | J157: 0 | K157: -0.161051326236816-0.233810348483186i | L157: 0.2839098602 | M157: 57.98066322 | N157: 58.44377937 | O157: 34.27125697 | P157: 7.093033343 | Q157: 27.54045268 | R157: 15.29286284 | S157: 6.070634006 | T157: 84.58173471 | U157: 85.04485086 | V157: 60.87232846
C158: 23.44 | D158: 147.2778636 | E158: 147.27786360029i | F158: -0.151808808110141+0.00537896477233943i | G158: 0.000595957450181396-0.000392104375991118i | H158: 0.0577482948042967+0.0877713400593923i | I158: 0.7133800699 | J158: 0 | K158: -0.168151688408458-0.236859130516044i | L158: 0.2904776033 | M158: 58.35567901 | N158: 58.84107327 | O158: 35.01114578 | P158: 7.15269059 | Q158: 28.14766172 | R158: 15.25367702 | S158: 6.211067186 | T158: 84.9567505 | U158: 85.44214476 | V158: 61.61221727
C159: 23.99 | D159: 150.7336155 | E159: 150.733615519238i | F159: -0.159446019219124+0.0057981373154302i | G159: 0.000588879634157567-0.000399198089881915i | H159: 0.0601725713962748+0.0887639563622162i | I159: 0.7114340015 | J159: 0 | K159: -0.175648818919859-0.239855578641278i | L159: 0.2972931318 | M159: 58.73485754 | N159: 59.24397055 | O159: 35.76330347 | P159: 7.217013216 | Q159: 28.77497127 | R159: 15.21206569 | S159: 6.356798577 | T159: 85.33592903 | U159: 85.84504204 | V159: 62.36437496
C160: 24.55 | D160: 154.2521993 | E160: 154.252199291259i | F160: -0.167448024105855+0.00624928753916124i | G160: 0.00058154658641129-0.000406276673459414i | H160: 0.0626690704018513+0.0897048399442657i | I160: 0.7094062077 | J160: 0 | K160: -0.183413928925248-0.242727733179237i | L160: 0.3042325127 | M160: 59.11091482 | N160: 59.64481049 | O160: 36.5134139 | P160: 7.285127013 | Q160: 29.41057805 | R160: 15.16870687 | S160: 6.505178213 | T160: 85.71198631 | U160: 86.24588198 | V160: 63.11448539
C161: 25.12 | D161: 157.8336149 | E161: 157.833614916351i | F161: -0.17583061955406+0.00673478180604804i | G161: 0.000573954415143406-0.00041332962935313i | H161: 0.06523730955284+0.0905893001392838i | I161: 0.7072941772 | J161: 0 | K161: -0.191450713757351-0.245462127694833i | L161: 0.3112957307 | M161: 59.48374233 | N161: 60.04352406 | O161: 37.26128097 | P161: 7.357281059 | Q161: 30.05412845 | R161: 15.12354689 | S161: 6.656205765 | T161: 86.08481382 | U161: 86.64459555 | V161: 63.86235246
C162: 25.7 | D162: 161.4778624 | E162: 161.477862394515i | F162: -0.184610345696828+0.0072571655019711i | G162: 0.00056609948149773-0.000420346086056452i | H162: 0.0678765874422967+0.0914125341748967i | I162: 0.7050953517 | J162: 0 | K162: -0.199762542383769-0.248044753232819i | L162: 0.3184827671 | M162: 59.85323724 | N162: 60.4400493 | O162: 38.00672158 | P162: 7.433745591 | Q162: 30.70523338 | R162: 15.07653104 | S162: 6.809880836 | T162: 86.45430873 | U162: 87.04112079 | V162: 64.60779307
C163: 26.3 | D163: 165.2477736 | E163: 165.247773578823i | F163: -0.193962679285526+0.00782897749462477i | G163: 0.00055783966235034-0.000427431426364707i | H163: 0.0706320915643885+0.0921817622173561i | I163: 0.7027678942 | J163: 0 | K163: -0.208499163862198-0.250500144944765i | L163: 0.325917511 | M163: 60.22542347 | N163: 60.84093694 | O163: 38.76202496 | P163: 7.516217768 | Q163: 31.37458343 | R163: 15.02676474 | S163: 6.96885245 | T163: 86.82649496 | U163: 87.44200843 | V163: 65.36309645
C164: 26.92 | D164: 169.1433485 | E164: 169.143348469274i | F164: -0.203920108486988+0.00845489983598308i | G164: 0.000549165251470226-0.000434564849134387i | H164: 0.0735037537096351+0.0928876494966449i | I164: 0.7003064197 | J164: 0 | K164: -0.217670004613903-0.252801662722991i | L164: 0.3335999274 | M164: 60.59971965 | N164: 61.24568813 | O164: 39.52626183 | P164: 7.605203618 | Q164: 32.06146712 | R164: 14.97413286 | S164: 7.133119865 | T164: 87.20079114 | U164: 87.84675962 | V164: 66.12733332
C165: 27.54 | D165: 173.0389234 | E165: 173.038923359726i | F165: -0.214181146800127+0.00911805889720418i | G165: 0.000540353444625394-0.00044150384355626i | H165: 0.0763973497481561+0.0935021782916975i | I165: 0.6977875672 | J165: 0 | K165: -0.226981264858981-0.254858823427015i | L165: 0.3412821626 | M165: 60.96397725 | N165: 61.64121859 | O165: 40.27465464 | P165: 7.698197155 | Q165: 32.74317842 | R165: 14.9202741 | S165: 7.297383402 | T165: 87.56504874 | U165: 88.24229008 | V165: 66.87572613
C166: 28.18 | D166: 177.060162 | E166: 177.060161956321i | F166: -0.22509771984886+0.00984347350142958i | G166: 0.00053111780054455-0.00044845934290294i | H166: 0.0794042838852198+0.094039803782303i | I166: 0.6951272547 | J166: 0 | K166: -0.236734769100757-0.256720981086632i | L166: 0.3492119887 | M166: 61.32988116 | N166: 62.04027075 | O166: 41.03124021 | P166: 7.798602566 | Q166: 33.44109076 | R166: 14.86339061 | S166: 7.466940993 | T166: 87.93095265 | U166: 88.64134224 | V166: 67.6323117
C167: 28.84 | D167: 181.2070643 | E167: 181.207064259059i | F167: -0.236707610205707+0.0106370887139348i | G167: 0.000521450036701301-0.000455408007886426i | H167: 0.0825231481491656+0.0944904303084213i | I167: 0.6923197198 | J167: 0 | K167: -0.246938009348645-0.258357818758517i | L167: 0.3573893437 | M167: 61.69689956 | N167: 62.44240517 | O167: 41.79518354 | P167: 7.907083424 | Q167: 34.15422577 | R167: 14.80335917 | S167: 7.641791311 | T167: 88.29797105 | U167: 89.04347666 | V167: 68.39625503
C168: 29.51 | D168: 185.4167984 | E168: 185.41679841487i | F168: -0.248866802343042+0.0114923097565339i | G168: 0.000511492184304807-0.000462225391287976i | H168: 0.085704352198677+0.0948392432280259i | I168: 0.6894030512 | J168: 0 | K168: -0.257439799095354-0.259719301348681i | L168: 0.3656902592 | M168: 62.05918768 | N168: 62.84132011 | O168: 42.55447273 | P168: 8.022615589 | Q168: 34.87083247 | R168: 14.74099421 | S168: 7.819283632 | T168: 88.66025917 | U168: 89.4423916 | V168: 69.15554422
C169: 30.2 | D169: 189.7521963 | E169: 189.752196276823i | F169: -0.26179076825515+0.0124278734899276i | G169: 0.000501091824061574-0.000468993259462152i | H169: 0.0889925010219692+0.0950832741520431i | I169: 0.6863291438 | J169: 0 | K169: -0.268399391623823-0.260799261482242i | L169: 0.3742385445 | M169: 62.42188181 | N169: 63.24277724 | O169: 43.32003136 | P169: 8.14761715 | Q169: 35.6005309 | R169: 14.67526713 | S169: 8.002065279 | T169: 89.0229533 | U169: 89.84384873 | V169: 69.92110285
C170: 30.9 | D170: 194.150426 | E170: 194.150425991849i | F170: -0.275328159131871+0.0134367233811119i | G170: 0.000490396543092166-0.000475592875312161i | H170: 0.0923365593405444+0.0952106977462742i | I170: 0.6831378723 | J170: 0 | K170: -0.279659562764759-0.261554501254899i | L170: 0.382910209 | M170: 62.77946171 | N170: 63.64077657 | O170: 44.08037443 | P170: 8.281046487 | Q170: 36.33153477 | R170: 14.60703054 | S170: 8.18748505 | T170: 89.3805332 | U170: 90.24184806 | V170: 70.68144592
C171: 31.62 | D171: 198.6743194 | E171: 198.674319413019i | F171: -0.289710765745434+0.0145404375901761i | G171: 0.000479251202413118-0.000482097046777621i | H171: 0.0957803026595702+0.0952149064672972i | I171: 0.6797788446 | J171: 0 | K171: -0.291381678942586-0.261966960896646i | L171: 0.3918290079 | M171: 63.13678279 | N171: 64.04083708 | O171: 44.84600029 | P171: 8.425677024 | Q171: 37.07290245 | R171: 14.53520694 | S171: 8.378189112 | T171: 89.73785428 | U171: 90.64190856 | V171: 71.44707178
C172: 32.36 | D172: 203.3238765 | E172: 203.323876540331i | F172: -0.304989413777826+0.0157483435627084i | G172: 0.000467651326772189-0.000488477455606779i | H172: 0.0993191298765278+0.0950846806285505i | I172: 0.6762455087 | J172: 0 | K172: -0.303567916945411-0.261998717538302i | L172: 0.4009947733 | M172: 63.49338367 | N172: 64.44261257 | O172: 45.61622801 | P172: 8.582648522 | Q172: 37.82281719 | R172: 14.45965624 | S172: 8.574173876 | T172: 90.09445516 | U172: 91.04368406 | V172: 72.2172995
C173: 33.11 | D173: 208.0362655 | E173: 208.036265520716i | F173: -0.321001498914805+0.0170528244676824i | G173: 0.000455753097476817-0.000494624810909086i | H173: 0.102899898495417+0.0948131723985759i | I173: 0.6725805449 | J173: 0 | K173: -0.316051590123907-0.261617864306012i | L173: 0.4102834563 | M173: 63.84420852 | N173: 64.8405318 | O173: 46.3803305 | P173: 8.750947155 | Q173: 38.56932453 | R173: 14.38129104 | S173: 8.772786898 | T173: 90.44528001 | U173: 91.44160329 | V173: 72.98140199
C174: 33.88 | D174: 212.8743182 | E174: 212.874318207244i | F174: -0.338007529387059+0.0184809030054038i | G174: 0.000443398338163482-0.000500597210412155i | H174: 0.106564289862936+0.0943881189307762i | I174: 0.6687298807 | J174: 0 | K174: -0.328995646209826-0.260786477609757i | L174: 0.4198186777 | M174: 64.19370592 | N174: 65.23977123 | O174: 47.1482007 | P174: 8.934077082 | Q174: 39.32027534 | R174: 14.29895514 | S174: 8.976671465 | T174: 90.79477741 | U174: 91.84084272 | V174: 73.74927219
C175: 34.67 | D175: 217.8380346 | E175: 217.838034599916i | F175: -0.356069260931353+0.0200450325797223i | G175: 0.000430585961783779-0.000506363287017701i | H175: 0.110305183237489+0.093797999641293i | I175: 0.664686429 | J175: 0 | K175: -0.342397373521893-0.259461584830267i | L175: 0.4296001343 | M175: 64.54144518 | N175: 65.64003307 | O175: 47.91924275 | P175: 9.133687231 | Q175: 40.07291676 | R175: 14.21249701 | S175: 9.185821099 | T175: 91.14251667 | U175: 92.24110456 | V175: 74.52031424
C176: 35.48 | D176: 222.9274147 | E176: 222.927414698732i | F176: -0.375253198958488+0.0217590749265565i | G176: 0.000417316309896151-0.000511890512647745i | H176: 0.11411442859337+0.0930312460767638i | I176: 0.6604428813 | J176: 0 | K176: -0.356251948085129-0.257598230003318i | L176: 0.4396274543 | M176: 64.88700499 | N176: 66.04103641 | O176: 48.69289076 | P176: 9.351673225 | Q176: 40.82403286 | R176: 14.12176037 | S176: 9.400227848 | T176: 91.48807648 | U176: 92.6421079 | V176: 75.29396225
C177: 36.31 | D177: 228.1424585 | E177: 228.142458503691i | F177: -0.395631066862651+0.0236384844767824i | G177: 0.000403591291751725-0.000517145220620969i | H177: 0.117982782035902+0.092076309530919i | I177: 0.6559916996 | J177: 0 | K177: -0.37055219776073-0.255149451002682i | L177: 0.4499001818 | M177: 65.22997212 | N177: 66.44251642 | O177: 49.46860795 | P177: 9.590223931 | Q177: 41.56984904 | R177: 14.02658406 | S177: 9.619881962 | T177: 91.8310436 | U177: 93.04358791 | V177: 76.06967944
C178: 37.15 | D178: 233.4203342 | E178: 233.420334161722i | F178: -0.417020943457212+0.025675419648922i | G178: 0.000389581975434763-0.000522037001339031i | H178: 0.12185405129734+0.0909363548893661i | I178: 0.6513806463 | J178: 0 | K178: -0.385114513452447-0.252105958764839i | L178: 0.4602940396 | M178: 65.56600501 | N178: 66.83955146 | O178: 50.23683924 | P178: 9.848692 | Q178: 42.29742803 | R178: 13.92798932 | S178: 9.842126115 | T178: 92.1670765 | U178: 93.44062295 | V178: 76.83791073
C179: 38.02 | D179: 238.8867054 | E179: 238.886705378968i | F179: -0.440015410304699+0.027937552991505i | G179: 0.000374960185532009-0.000526646647984312i | H179: 0.125808882635849+0.0895730033700282i | I179: 0.6464919432 | J179: 0 | K179: -0.400273130986228-0.248344537404277i | L179: 0.4710558233 | M179: 65.90270211 | N179: 67.24135786 | O179: 51.01539194 | P179: 10.13616794 | Q179: 43.01885603 | R179: 13.82345781 | S179: 10.07223735 | T179: 92.5037736 | U179: 93.84242935 | V179: 77.61646343
C180: 38.9 | D180: 244.4159084 | E180: 244.415908449286i | F180: -0.464175409946585+0.0303941662730663i | G180: 0.000360069243187769-0.00053083168399087i | H180: 0.129743708276293+0.0880066511783855i | I180: 0.6414297597 | J180: 0 | K180: -0.415664235408102-0.243899204647862i | L180: 0.4819373181 | M180: 66.23192144 | N180: 67.63847123 | O180: 51.7859038 | P180: 10.44944507 | Q180: 43.71137438 | R180: 13.71521689 | S180: 10.30490829 | T180: 92.83299293 | U180: 94.23954272 | V180: 78.38697529
C181: 39.81 | D181: 250.1336071 | E181: 250.133607078819i | F181: -0.490147976911861+0.0331252201259793i | G181: 0.000344580273793193-0.000534649554833515i | H181: 0.133733821673592+0.0861911068120984i | I181: 0.6360705241 | J181: 0 | K181: -0.43161852209232-0.238614165531171i | L181: 0.493184822 | M181: 66.56074779 | N181: 68.03970567 | O181: 52.56545292 | P181: 10.799689 | Q181: 44.383236 | R181: 13.60062433 | S181: 10.54540532 | T181: 93.16181928 | U181: 94.64077716 | V181: 79.1665244
C182: 40.74 | D182: 255.9769694 | E182: 255.976969414496i | F182: -0.517770934200709+0.036131122806888i | G182: 0.000328673977963934-0.00053801119943497i | H182: 0.137718476342422+0.0841329688046147i | I182: 0.6304622388 | J182: 0 | K182: -0.447938245432626-0.232479219572537i | L182: 0.5046734184 | M182: 66.88497786 | N182: 68.44029718 | O182: 53.34477886 | P182: 11.18829358 | Q182: 45.01724575 | R182: 13.48070653 | S182: 10.79105746 | T182: 93.48604935 | U182: 95.04136867 | V182: 79.94585035
C183: 41.69 | D183: 261.9459955 | E183: 261.945995456317i | F183: -0.547160971987832+0.03944270811925i | G183: 0.000312364945015905-0.000540877065286331i | H183: 0.141680581285919+0.081822746467849i | I183: 0.6245957562 | J183: 0 | K183: -0.464596023538309-0.225435460191619i | L183: 0.5164015993 | M183: 67.20421166 | N183: 68.84005755 | O183: 54.12349571 | P183: 11.62099358 | Q183: 45.6023312 | R183: 13.35526788 | S183: 11.04183246 | T183: 93.80528315 | U183: 95.44112904 | V183: 80.7245672
C184: 42.66 | D184: 268.0406852 | E184: 268.040685204281i | F184: -0.578445483132056+0.0430948463857699i | G184: 0.000295670505342805-0.000543206877091559i | H184: 0.145601543543299+0.0792517248467815i | I184: 0.6184616068 | J184: 0 | K184: -0.481559817098255-0.217422147511164i | L184: 0.5283675309 | M184: 67.51804421 | N184: 69.23880753 | O184: 54.90123786 | P184: 12.10464805 | Q184: 46.12492255 | R184: 13.22410591 | S184: 11.2976911 | T184: 94.1191157 | U184: 95.83987902 | V184: 81.50230935
C185: 43.65 | D185: 274.2610387 | E185: 274.261038658389i | F185: =IMPRODUCT(IMDIV(COMPLEX(0,Sd*Dbl/Sp*D185),COMPLEX(Kbp,Dbl*D185)),IMSUM(IMDIV(IMPRODUCT(COMPLEX(Kbp,0),IMSUB(COMPLEX(1,0),IMDIV(COMPLEX(Kbp,0),COMPLEX(Kbp,Dbl*D185)))),IMSUB(Mp*D185^2,IMPRODUCT(COMPLEX(Kbp,0),IMSUB(COMPLEX(1,0),IMDIV(COMPLEX(Kbp,0),COMPLEX(Kbp,Dbl*D185)))))),COMPLEX(1,0))) -> -0.611763832335416+0.0471270716934346i | G185: =IMDIV(COMPLEX(Bl,0),IMPRODUCT(COMPLEX(Re,Le*D185),IMSUM(COMPLEX(Kd-Md*D185^2,0),IMPRODUCT(E185,IMSUM(COMPLEX(Dd,0),IMDIV(COMPLEX(Bl^2,0),COMPLEX(Re,Le*D185)))),IMPRODUCT(COMPLEX(Sd*Kbp/Sp,0),F185)))) -> 0.000278610932503017-0.000544959746992096i | H185: =IMPRODUCT(E185,G185) -> 0.149461226237065+0.0764121237298598i | I185: 0.6120499796 | J185: =IF(AND(I186>I185,I186>I187),I186,0) -> 0 | K185: =IMPRODUCT(E185,IMPRODUCT(IMDIV(COMPLEX(0,Sd*Kbp*Dbl/Sp*D185),IMPRODUCT(COMPLEX(Kbp,Dbl*D185),IMSUB(COMPLEX(Mp*D185^2,0),IMPRODUCT(COMPLEX(Kbp,0),IMSUB(COMPLEX(1,0),IMDIV(COMPLEX(Kbp,0),COMPLEX(Kbp,Dbl*D185))))))),G185)) -> -0.498792473093672-0.208376816657568i | L185: 0.5405689863 | M185: =79.6+20*LOG10(IMABS(IMPRODUCT(COMPLEX(Sd*D185,0),H185))) -> 67.82606295 | N185: =79.6+20*LOG10(IMABS(IMPRODUCT(COMPLEX(Sp*D185,0),K185))) -> 69.63637554 | O185: =79.6+20*LOG10(IMABS(IMSUM(IMPRODUCT(COMPLEX(Sd*D185,0),H185),IMPRODUCT(COMPLEX(Sp*D185,0),K185)))) -> 55.67765843 | P185: =IMABS(IMDIV(COMPLEX(Re,D185*Le),IMSUB(COMPLEX(1,0),IMPRODUCT(COMPLEX(Bl,0),H185)))) -> 12.64750063 | Q185: =180/PI()*IMARGUMENT(IMDIV(COMPLEX(Re,D185*Le),IMSUB(COMPLEX(1,0),IMPRODUCT(COMPLEX(Bl,0),H185)))) -> 46.5682569 | R185: =MaxV*I185 -> 13.08701084 | S185: =MaxV*L185 -> 11.55858577 | T185: =20*LOG10(MaxV)+M185 -> 94.42713444 | U185: =20*LOG10(MaxV)+N185 -> 96.23744703 | V185: =20*LOG10(MaxV)+O185 -> 82.27872992
C186: 44.67 | D186: =2*PI()*C186 -> 280.6698877 | E186: =COMPLEX(0,2*PI()*C186) -> 280.669887671712i | F186: -0.647628229974993+0.0516302861544777i | G186: 0.000261037466186387-0.000546102226042679i | H186: 0.153274450440671+0.0732653563126416i | I186: 0.6052835699 | J186: 0 | K186: -0.516423337346613-0.198130364612591i | L186: =IMABS(K186) -> 0.5531263009 | M186: 68.13077108 | N186: 70.03647331 | O186: 56.46001333 | P186: 13.26588068 | Q186: 46.91423943 | R186: 12.94232972 | S186: 11.82708952 | T186: 94.73184257 | U186: 96.6375448 | V186: 83.06108482
C187: 45.71 | D187: 287.2044004 | E187: 287.204400391179i | F187: -0.685880489471356+0.0566177270696883i | G187: 0.000243149960694663-0.000546571215326092i | H187: 0.156977658168808+0.0698337386664494i | I187: =1000*IMABS(G187) -> 0.5982156775 | J187: 0 | K187: -0.534227632543463-0.18670337945598i | L187: 0.565912816 | M187: 68.42855993 | N187: 70.43488308 | O187: 57.24006794 | P187: 13.96691017 | Q187: 47.13099309 | R187: 12.79120222 | S187: 12.10049409 | T187: 95.02963142 | U187: 97.03595457 | V187: 83.84113943
C188: 46.77 | D188: 293.8645768 | E188: 293.864576816789i | F188: -0.72670915080322+0.0621492938383247i | G188: 0.000224979715506592-0.000546324413936309i | H188: 0.160545392706074+0.0661135688897062i | I188: 0.5908352035 | J188: 0 | K188: -0.552148217293561-0.174028436340745i | L188: 0.5789244774 | M188: 68.71897735 | N188: 70.83145372 | O188: 58.01753136 | P188: 14.76556247 | Q188: 47.18433495 | R188: 12.63339102 | S188: 12.37871279 | T188: 95.32004884 | U188: 97.43252521 | V188: 84.61860285
C189: 47.86 | D189: 300.7132488 | E189: 300.713248801615i | F189: -0.770736155281195+0.0683531695693058i | G189: 0.000206391996287589-0.000545306735672394i | H189: 0.163980960077449+0.0620648077302918i | I189: 0.5830583951 | J189: 0 | K189: -0.570285272061662-0.159902641750591i | L189: 0.5922787742 | M189: 69.0041041 | N189: 71.22964534 | O189: 58.799215 | P189: 15.68894283 | Q189: 47.02791929 | R189: 12.46710529 | S189: 12.66425782 | T189: 95.60517559 | U189: 97.83071682 | V189: 85.40028649
C190: 48.98 | D190: 307.7504163 | E190: 307.750416345656i | F190: -0.818255225194718+0.0753253405568818i | G190: 0.00018743045243286-0.000543454577844939i | H190: 0.167248372596733+0.0576817997720673i | I190: 0.5748678567 | J190: 0 | K190: -0.588555140606869-0.144225972345847i | L190: 0.6059688809 | M190: 69.28306703 | N190: 71.62905013 | O190: 59.58437102 | P190: 16.76236373 | Q190: 46.59712966 | R190: 12.29197308 | S190: 12.95698322 | T190: 95.88413852 | U190: 98.23012161 | V190: 86.18544251
C191: 50.12 | D191: 314.9132476 | E191: 314.913247595841i | F191: -0.869138198373309+0.0831068572080703i | G191: 0.000168312256663633-0.000540731697366598i | H191: 0.170283574895727+0.0530037593561294i | I191: 0.566321273 | J191: 0 | K191: -0.606704067292535-0.127052851170203i | L191: 0.6198647048 | M191: 69.55265528 | N191: 72.02582748 | O191: 60.36549994 | P191: 18.00453534 | Q191: 45.81481851 | R191: 12.10922782 | S191: 13.25410732 | T191: 96.15372677 | U191: 98.62689897 | V191: 86.96657143
C192: 51.29 | D192: 322.2645744 | E192: 322.264574405241i | F192: -0.92416446195807+0.0918873169597422i | G192: 0.00014892394271676-0.000537062027128293i | H192: 0.173076065601715+0.0479929110183672i | I192: 0.5573275174 | J192: 0 | K192: -0.624787820197931-0.108147016911055i | L192: 0.6340785421 | M192: 69.81447297 | N192: 72.42318318 | O192: 61.14897827 | P192: 19.4585814 | Q192: 44.56646651 | R192: 11.91692102 | S192: 13.55803126 | T192: 96.41554445 | U192: 99.02425467 | V192: 87.75004975
C193: 52.48 | D193: 329.7415649 | E193: 329.741564920785i | F193: -0.983236827370134+0.101733645661071i | G193: 0.00012949176322235-0.000532425955729043i | H193: 0.175562967846539+0.0426988166492894i | I193: 0.5479466352 | J193: 0 | K193: -0.642535287078963-0.0875855881095006i | L193: 0.6484773168 | M193: 70.06547362 | N193: 72.81744039 | O193: 61.92763927 | P193: 21.14486835 | Q193: 42.7212493 | R193: 11.71633657 | S193: 13.86590958 | T193: 96.66654511 | U193: 99.41851188 | V193: 88.52871076
C194: 53.7 | D194: 337.407051 | E194: 337.407050995544i | F194: -1.04727413283596+0.112896834240725i | G194: 0.000109920290348674-0.000526735235814091i | H194: 0.177724182571475+0.0370878810111201i | I194: 0.5380822232 | J194: 0 | K194: -0.659963600599834-0.0651133819665233i | L194: 0.6631679324 | M194: 70.30689959 | N194: 73.21162414 | O194: 62.70756158 | P194: 23.10250964 | Q194: 40.07862971 | R194: 11.50541316 | S194: 14.18002812 | T194: 96.90797108 | U194: 99.81269563 | V194: 89.30863307
C195: 54.95 | D195: 345.2610326 | E195: 345.261032629518i | F195: -1.1168007338971+0.125591131020278i | G195: 0.0000902898351448818-0.000519931364523758i | H195: 0.179512039811947+0.0311735617180708i | I195: 0.5277128747 | J195: 0 | K195: -0.676913831597918-0.0406342981772265i | L195: 0.6781323481 | M195: 70.53761694 | N195: 73.60531124 | O195: 63.48805527 | P195: 25.33083543 | Q195: 36.39612809 | R195: 11.28369307 | S195: 14.50000113 | T195: 97.13868843 | U195: 100.2063827 | V195: 90.08912676
C196: 56.23 | D196: 353.3035098 | E196: 353.303509822708i | F196: -1.19241567866268+0.140073745592608i | G196: 0.0000706903467792433-0.000511958931270544i | H196: 0.180876887302966+0.024975147627691i | I196: 0.516816285 | J196: 0 | K196: -0.69320609958514-0.014057297674115i | L196: 0.6933486166 | M196: 70.75640241 | N196: 73.99806281 | O196: 64.26842952 | P196: 27.75809782 | Q196: 31.39497782 | R196: 11.05069937 | S196: 14.82535931 | T196: 97.3574739 | U196: 100.5991343 | V196: 90.86950101
C197: 57.54 | D197: 361.5344826 | E197: 361.534482575113i | F197: -1.27480622598572+0.15665532517716i | G197: 0.0000512220847276476-0.000502766775321862i | H197: 0.181767525971947+0.0185185498984287i | I197: 0.5053693029 | J197: 0 | K197: -0.708637630412695+0.0147010158384591i | L197: 0.7087901037 | M197: 70.96192675 | N197: 74.38941813 | O197: 65.04798608 | P197: 30.17084817 | Q197: 24.82426049 | R197: 10.80593704 | S197: 15.15553318 | T197: 97.56299824 | U197: 100.9904896 | V197: 91.64905757
C198: 58.88 | D198: 369.9539509 | E198: 369.953950886734i | F198: -1.36476431562034+0.175713481078319i | G198: 0.000031996266308817-0.000492309374921461i | H198: 0.182131798310773+0.0118371451345709i | I198: 0.493348033 | J198: 0 | K198: -0.722980823919029+0.0457131946982222i | L198: 0.7244245771 | M198: 71.15273535 | N198: 74.77888762 | O198: 65.82601181 | P198: 32.14702661 | Q198: 16.61498545 | R198: 10.54889514 | S198: 15.48983353 | T198: 97.75380684 | U198: 101.3799591 | V198: 92.4270833
C199: 60.26 | D199: 378.6247466 | E199: 378.624746610642i | F199: -1.46395079592454+0.197881214080058i | G199: 0.0000130011346623222-0.000480458783312618i | H199: 0.181913585088597+0.00492255131717258i | I199: 0.4806346554 | J199: 0 | K199: -0.736069735292849+0.079286109776745i | L199: 0.7403275913 | M199: 71.328422 | N199: 75.16872933 | O199: 66.60736103 | P199: 33.11297567 | Q199: 7.035397043 | R199: 10.27705442 | S199: 15.82987589 | T199: 97.92949349 | U199: 101.7698008 | V199: 93.20843252
C200: 61.66 | D200: 387.421206 | E200: 387.421206040693i | F200: -1.57199990631312+0.223410362476054i | G200: -5.35259894407348E-06-0.000467357917828031i | H200: 0.181064368177603-0.00207371033836509i | I200: 0.4673885682 | J200: 0 | K200: -0.747430825950392+0.114971170583072i | L200: 0.756221667 | M200: 71.48465781 | N200: 75.55272081 | O200: 67.37994103 | P200: 32.62640905 | Q200: -2.914156561 | R200: 9.993823158 | S200: 16.16972712 | T200: 98.0857293 | U200: 102.1537923 | V200: 93.98101252
C201: 63.1 | D201: 396.4689929 | E201: 396.468992883032i | F201: -1.69171696200382+0.253383712973163i | G201: -0.0000231783847713602-0.00045280284095475i | H201: 0.179522286327905-0.00918951086695658i | I201: 0.4533956884 | J201: 0 | K201: -0.756910959272115+0.153289937681856i | L201: 0.7722771557 | M201: 71.62167736 | N201: 75.93571903 | O201: 68.15397851 | P201: 30.75888817 | Q201: -12.2628673 | R201: 9.694623787 | S201: 16.51302973 | T201: 98.22274885 | U201: 102.5367905 | V201: 94.75505
C202: 64.57 | D202: 405.7052753 | E202: 405.705275284586i | F202: -1.82384790692696+0.288535692524175i | G202: -0.0000401798550442823-0.000436881306846365i | H202: 0.177245050860794-0.0163011791516353i | I202: 0.4387250814 | J202: 0 | K202: -0.764074776972295+0.193971860672685i | L202: 0.7883117071 | M202: 71.73603599 | N202: 76.31424333 | O202: 68.92301783 | P202: 28.04994416 | Q202: -20.09556067 | R202: 9.380933075 | S202: 16.85588465 | T202: 98.33710748 | U202: 102.9153148 | V202: 95.52408931
C203: 66.07 | D203: 415.1300532 | E203: 415.130053245355i | F203: -1.97015450760568+0.330013349566121i | G203: -0.0000561831304009511-0.000419609276189991i | H203: 0.174192421166996-0.0233233059148376i | I203: 0.4233538577 | J203: 0 | K203: -0.768545612286243+0.236954267236499i | L203: 0.8042447904 | M203: 71.82519798 | N203: 76.68751934 | O203: 69.68612742 | P203: 25.10266556 | Q203: -26.10018959 | R203: 9.052261598 | S203: 17.19656996 | T203: 98.42626947 | U203: 103.2885908 | V203: 96.28719891
C204: 67.61 | D204: 424.8061586 | E204: 424.806158618412i | F204: -2.13384159467791+0.379633211056969i | G204: -0.0000710949681683105-0.000400899859410702i | H204: 0.170304729266922-0.0302015803246783i | I204: 0.4071549972 | J204: 0 | K204: -0.769917220280955+0.282423000633901i | L204: 0.8200824821 | M204: 71.8865881 | N204: 77.05703749 | O204: 70.44716617 | P204: 22.29187642 | Q204: -30.39090039 | R204: 8.705893377 | S204: 17.53521558 | T204: 98.48765959 | U204: 103.658109 | V204: 97.04823766
C205: 69.18 | D205: 434.6707596 | E205: 434.670759550684i | F205: -2.31651686555075+0.439072592915779i | G205: -0.000084607315454281-0.000380930038329691i | H205: 0.165579149096438-0.0367763260720566i | I205: 0.3902128803 | J205: 0 | K205: -0.767716695955092+0.329917374992017i | L205: 0.8356042123 | M205: 71.91620959 | N205: 77.41929164 | O205: 71.19986824 | P205: 19.80905414 | Q205: -33.18993778 | R205: 8.343632654 | S205: 17.86710522 | T205: 98.51728108 | U205: 104.0203631 | V205: 97.80093973
C206: 70.79 | D206: 444.7866879 | E206: 444.786687895243i | F206: -2.52258096321703+0.511357924742724i | G206: -0.0000965854967280701-0.000359661376323519i | H206: 0.159972592338783-0.0429599431883951i | I206: 0.3724044358 | J206: 0 | K206: -0.76144251596014+0.379494478608538i | L206: 0.8507706885 | M206: 71.91012867 | N206: 77.77535669 | O206: 71.94759267 | P206: 17.67618434 | Q206: -34.79263247 | R206: 7.962847891 | S206: 18.19139874 | T206: 98.51120016 | U206: 104.3764282 | V206: 98.54866416
C207: 72.44 | D207: 455.1539437 | E207: 455.153943652089i | F207: -2.75616287738481+0.600161390676458i | G207: -0.000106785647821537-0.00033721462029568i | H207: 0.153484564284721-0.0486039087314157i | I207: 0.3537186378 | J207: 0 | K207: -0.750555971217842+0.430821323082465i | L207: 0.8654139347 | M207: 71.86325182 | N207: 78.12371458 | O207: 72.68855131 | P207: 15.87280633 | Q207: -35.43012355 | R207: 7.563303329 | S207: 18.50450441 | T207: 98.46432331 | U207: 104.7247861 | V207: 99.2896228
C208: 74.13 | D208: 465.7725268 | E208: 465.772526821223i | F208: -3.02232275334611+0.71050440052698i | G208: -0.000114963084807079-0.000313757504065694i | H208: 0.146139625477798-0.0535466465017557i | I208: 0.3341560747 | J208: 0 | K208: -0.734517047372376+0.483449818480691i | L208: 0.8793401048 | M208: 71.76970249 | N208: 78.46268569 | O208: 73.42081024 | P208: 14.35723543 | Q208: -35.28766021 | R208: 7.145011549 | S208: 18.80227738 | T208: 98.37077398 | U208: 105.0637572 | V208: 100.0218817
C209: 75.86 | D209: 476.6424374 | E209: 476.642437402643i | F209: -3.3272738509796+0.849374093704634i | G209: -0.000120881201616335-0.000289510425713158i | H209: 0.137992954965396-0.0576171105745702i | I209: 0.313733249 | J209: 0 | K209: -0.712807004507402+0.536801954418797i | L209: 0.8923285067 | M209: 71.62267975 | N209: 78.79042019 | O209: 74.14228052 | P209: 13.08521509 | Q209: -34.50815535 | R209: 6.708325411 | S209: 19.07999875 | T209: 98.22375124 | U209: 105.3914917 | V209: 100.743352
C210: 77.62 | D210: 487.7008435 | E210: 487.70084354328i | F210: -3.67651848500264+1.02555841942637i | G210: -0.000124311085314906-0.000264889940505016i | H210: 0.129187047430426-0.0606266211698603i | I210: 0.2926088285 | J210: 0 | K210: -0.685131479670726+0.589861835873601i | L210: 0.9040697594 | M210: 71.41564932 | N210: 79.10317969 | O210: 74.84679814 | P210: 12.02250584 | Q210: -33.20947276 | R210: 6.256637594 | S210: 19.33105325 | T210: 98.01672081 | U210: 105.7042512 | V210: 101.4478696
C211: 79.43 | D211: 499.0734089 | E211: 499.073408949275i | F211: -4.08320679122797+1.25533185274459i | G211: -0.000125109061503432-0.000239950948011656i | H211: 0.119753137604787-0.0624386058149623i | I211: 0.2706080833 | J211: 0 | K211: -0.650796521746208+0.642370651752124i | L211: 0.9144266876 | M211: 71.13715308 | N211: 79.40233717 | O211: 75.53997692 | P211: 11.12396347 | Q211: -31.46067981 | R211: 5.786211973 | S211: 19.55250776 | T211: 97.73822457 | U211: 106.0034087 | V211: 102.1410484
C212: 81.28 | D212: 510.6973018 | E212: 510.697301767557i | F212: -4.55632050566586+1.55899306793414i | G212: -0.000123115787686688-0.000215227090708746i | H212: 0.109915894492238-0.062874900576579i | I212: 0.247952007 | J212: 0 | K212: -0.609693885630797+0.693015341455307i | L212: 0.9230367802 | M212: 70.77765563 | N212: 79.6837221 | O212: 76.21519875 | P212: 10.3692648 | Q212: -29.33426507 | R212: 5.301773894 | S212: 19.73661099 | T212: 97.37872712 | U212: 106.2847936 | V212: 102.8162702
C213: 83.18 | D213: 522.6353539 | E213: 522.635353851198i | F213: -5.11088103619239+1.97111790093898i | G213: -0.000118235096022091-0.000191038753795818i | H213: 0.0998436066893692-0.0617938412471359i | I213: 0.2246671836 | J213: 0 | K213: -0.561483983181714+0.740903283908028i | L213: 0.9296246229 | M213: 70.32250474 | N213: 79.94619876 | O213: 76.87320288 | P213: 9.733881276 | Q213: -26.87063177 | R213: 4.803891783 | S213: 19.87747394 | T213: 96.92357623 | U213: 106.5472702 | V213: 103.4742744
C214: 85.11 | D214: 534.7619015 | E214: 534.761901494055i | F214: -5.75178924499466+2.53723641776886i | G214: -0.000110543273708338-0.000168123747981582i | H214: 0.0899061751569381-0.0591143312456486i | I214: 0.2012098656 | J214: 0 | K214: -0.506831762788825+0.784302838974322i | L214: 0.9338144243 | M214: 69.76316431 | N214: 80.18449144 | O214: 77.50437966 | P214: 9.20741867 | Q214: -24.14161673 | R214: 4.302321347 | S214: 19.96706136 | T214: 96.3642358 | U214: 106.7855629 | V214: 104.1054511
C215: 87.1 | D215: 547.2654403 | E215: 547.265440255342i | F215: -6.49233584527269+3.34701450727669i | G215: -0.000100032568295422-0.000146646290631255i | H215: 0.0802544468041266-0.0547443675280667i | I215: 0.1775152086 | J215: 0 | K215: -0.445281271933412+0.822565109658104i | L215: 0.9353548903 | M215: 69.07639282 | N215: 80.3995596 | O215: 78.11557135 | P215: 8.768908638 | Q215: -21.14443972 | R215: 3.795676067 | S215: 20 | T215: 95.67746431 | U215: 107.0006311 | V215: 104.7166428
C216: 89.13 | D216: 560.0203064 | E216: 560.020306428916i | F216: -7.30186282237007+4.52240621835286i | G216: -0.0000870218577538768-0.000127354823585009i | H216: 0.0713212873292773-0.0487340074453396i | I216: 0.1542467336 | J216: 0 | K216: -0.378118511326436+0.853952003980559i | L216: 0.9339205714 | M216: 68.25623105 | N216: 80.58634504 | O216: 78.69746051 | P216: 8.413537204 | Q216: -17.94496411 | R216: 3.298143521 | S216: 19.96933102 | T216: 94.85730254 | U216: 107.1874165 | V216: 105.298532
C217: 91.2 | D217: 573.0265 | E217: 573.026500014778i | F217: -8.0797075556247+6.25636215115223i | G217: -0.0000718849749647089-0.000110707071075501i | H217: 0.0634380854652816-0.0411919956076771i | I217: 0.1319981258 | J217: 0 | K217: -0.306403335879672+0.877326334772663i | L217: 0.9292924738 | M217: 67.3021041 | N217: 80.74261324 | O217: 79.24768151 | P217: 8.132897778 | Q217: -14.58020981 | R217: =MaxV*I217 -> 2.82241804 | S217: =MaxV*L217 -> 19.87037184 | T217: =20*LOG10(MaxV)+M217 -> 93.90317559 | U217: =20*LOG10(MaxV)+N217 -> 107.3436847 | V217: 105.848753
C218: 93.33 | D218: 586.4096847 | E218: 586.409684719071i | F218: -8.53555666176398+8.82531043013624i | G218: -0.0000549441031648251-0.0000969687377556186i | H218: 0.0568634069348786-0.0322197542140572i | I218: 0.1114530869 | J218: 0 | K218: -0.230769479485655+0.891856662646867i | L218: 0.921228994 | M218: 66.23364794 | N218: 80.86744535 | O218: 79.76887492 | P218: 7.918868281 | Q218: -11.05326964 | R218: 2.383118708 | S218: 19.69795643 | T218: 92.83471943 | U218: 107.4685168 | V218: 106.3699464
C219: 95.5 | D219: 600.0441968 | E219: 600.04419683565i | F219: -7.96032989081064+12.3446028428926i | G219: -0.0000369312981181418-0.0000865848727255393i | H219: 0.0519547504127132-0.0221604111173984i | I219: 0.09413214629 | J219: 0 | K219: -0.153521535703987+0.896647507093589i | L219: 0.9096953413 | M219: 65.16584936 | N219: 80.95765492 | O219: 80.25389946 | P219: 7.769506631 | Q219: -7.433589476 | R219: 2.01275788 | S219: 19.45134089 | T219: 91.76692085 | U219: 107.5587264 | V219: 106.854971
C220: 97.72 | D220: 613.9928682 | E220: 613.992868217589i | F220: -5.22982196546741+16.1952208328286i | G220: -0.0000184163296504604-0.0000796570537390667i | H220: 0.0489088628990122-0.0113074950641268i | I220: 0.08175822532 | J220: 0 | K220: -0.0760872932178729+0.891410970571966i | L220: 0.8946523317 | M220: 64.34092273 | N220: 81.0124232 | O220: 80.7035993 | P220: 7.680911464 | Q220: -3.741934566 | R220: 1.748175504 | S220: 19.12968737 | T220: 90.94199421 | U220: 107.6134947 | V220: 107.3046708
C221: 100 | D221: 628.3185307 | E221: 628.318530717959i | F221: 1.24789067967868E-13+18.301324930754i | G221: 3.89892018237261E-19-0.0000761899640791633i | H221: 0.047871566285674+2.44976380037495E-16i | I221: 0.07618996408 | J221: 0 | K221: -4.7664223427028E-15+0.876113089538246i | L221: 0.8761130895 | M221: 64.12891065 | N221: 81.03087145 | O221: 81.11861069 | P221: 7.651415175 | Q221: 8.070012899e-14 | R221: 1.629113503 | S221: 18.73327651 | T221: 90.72998214 | U221: 107.6319429 | V221: 107.7196822
C222: 102.3 | D222: 642.7698569 | E222: 642.769856924472i | F222: 5.41218496704804+16.9991225788215i | G222: 0.000017347357238069-0.0000760458828119626i | H222: 0.0488800012147404+0.0111503583299313i | I222: 0.07799940446 | J222: 0 | K222: 0.0716667189494327+0.851639021979102i | L222: 0.8546491341 | M222: 64.72780636 | N222: 81.01293789 | O222: 81.49183899 | P222: 7.680086206 | Q222: 3.689464552 | R222: 1.667803425 | S222: 18.27432866 | T222: 91.32887785 | U222: 107.6140094 | V222: 108.0929105
C223: 104.7 | D223: 657.8495017 | E223: 657.849501661703i | F223: 8.71815914556095+13.5536957864086i | G223: 0.0000336061315627084-0.0000789461907162421i | H223: 0.0519347122207696+0.0221077769013054i | I223: 0.08580135842 | J223: 0 | K223: 0.139693255287536+0.817952058024638i | L223: 0.8297950197 | M223: 65.95870582 | N223: 80.95801818 | O223: 81.83599481 | P223: 7.768913872 | Q223: 7.41526528 | R223: 1.834626821 | S223: 17.74289157 | T223: 92.55977731 | U223: 107.5590897 | V223: 108.4370663
C224: 107.2 | D224: 673.5574649 | E224: 673.557464929652i | F224: 9.80614668127559+10.0663698542234i | G224: 0.0000481415672392792-0.0000846084649070809i | H224: 0.0569886631344028+0.0324261119874293i | I224: 0.09734579 | J224: 0 | K224: 0.202253036646721+0.775893304345386i | L224: 0.8018208719 | M224: 67.46509017 | N224: 80.86511092 | O224: 82.14935112 | P224: 7.922791449 | Q224: 11.13054468 | R224: 2.08147284 | S224: 17.14474111 | T224: 94.06616166 | U224: 107.4661824 | V224: 108.7504226
C225: 109.6 | D225: 688.6371097 | E225: 688.637109666883i | F225: 9.72160815685611+7.56463739031981i | G225: 0.0000595820264249627-0.000091915688193502i | H225: 0.0632965538506157+0.0410303944653822i | I225: 0.1095377177 | J225: 0 | K225: 0.253879600423761+0.730673663562953i | L225: 0.773523661 | M225: 68.8746512 | N225: 80.74535121 | O225: 82.41093844 | P225: 8.128109018 | Q225: 14.51301177 | R225: 2.34216379 | S225: 16.53968283 | T225: 95.47572269 | U225: 107.3464227 | V225: 109.0120099
C226: 112.2 | D226: 704.9733915 | E226: 704.97339146555i | F226: 9.19046372464681+5.69019345622733i | G226: 0.0000691450480356881-0.000101188912644681i | H226: 0.071335490925832+0.0487454190167674i | I226: 0.1225570631 | J226: 0 | K226: 0.300452922845522+0.678303758630061i | L226: 0.7418678776 | M226: 70.25743645 | N226: 80.58605655 | O226: 82.65561108 | P226: 8.414068939 | Q226: 17.95048219 | R226: 2.620546797 | S226: 15.86281069 | T226: 96.85850794 | U226: 107.187128 | V226: 109.2566826
C227: 114.8 | D227: 721.3096733 | E227: 721.309673264216i | F227: 8.56039060444494+4.41612580882582i | G227: 0.0000758670215686083-0.00011121046323155i | H227: 0.0802171828971114+0.0547236165391821i | I227: 0.134623817 | J227: 0 | K227: 0.337675614791749+0.624252376930712i | L227: 0.7097294209 | M227: 71.47106879 | N227: 80.40036201 | O227: 82.86477402 | P227: 8.767333072 | Q227: 21.13206049 | R227: 2.878561247 | S227: 15.1756179 | T227: 98.07214028 | U227: 107.0014335 | V227: 109.4658455
C228: 117.5 | D228: 738.2742736 | E228: 738.274273593601i | F228: 7.9393032416106+3.50126438991974i | G228: 0.0000800797457694223-0.000121803450361107i | H228: 0.0899243538365405+0.0591208161374805i | I228: 0.1457698398 | J228: 0 | K228: 0.367180882331577+0.568023196075248i | L228: 0.6763668765 | M228: 72.56582347 | N228: 80.18407202 | O228: 83.04931351 | P228: 9.208306513 | Q228: 24.14691039 | R228: 3.116888388 | S228: 14.46225136 | T228: 99.16689496 | U228: 106.7851435 | V228: 109.650385
C229: 120.2 | D229: 755.2388739 | E229: 755.238873922986i | F229: 7.39082881892232+2.85319127408431i | G229: 0.0000818011936411119-0.000132099379032084i | H229: 0.0997665862661168+0.0617794413710695i | I229: 0.1553759351 | J229: 0 | K229: 0.388349698577369+0.513048433615828i | L229: 0.6434548808 | M229: 73.51480909 | N229: 79.94811942 | O229: 83.20521392 | P229: 9.729454567 | Q229: 26.85066904 | R229: 3.322288401 | S229: 13.75851856 | T229: 100.1158806 | U229: 106.5491909 | V229: 109.8062854
C230: 123 | D230: 772.8317928 | E230: 772.831792783089i | F230: 6.9018558860203+2.3645051220803i | G230: 0.0000813520969538529-0.000142081295121913i | H230: 0.109804942030011+0.0628714869355098i | I230: 0.1637231141 | J230: 0 | K230: 0.402669001634036+0.458433663843208i | L230: 0.6101669845 | M230: 74.36935967 | N230: 79.6867444 | O230: 83.3411411 | P230: 10.36158967 | Q230: 29.30868913 | R230: 3.50076994 | S230: 13.04674816 | T230: 100.9704312 | U230: 106.2878159 | V230: 109.9422126
C231: 125.9 | D231: 791.0530302 | E231: 791.05303017391i | F231: 6.47149943960909+1.98937480316347i | G231: 0.0000789295041670959-0.000151397034963033i | H231: 0.119763083266853+0.0624374234415055i | I231: 0.1707364309 | J231: 0 | K231: 0.410600650237002+0.405226869171095i | L231: 0.5768896857 | M231: 75.13850845 | N231: 79.40203816 | O231: 83.45862655 | P231: 11.12480974 | Q231: 31.46268293 | R231: 3.65073049 | S231: 12.33520435 | T231: 101.7395799 | U231: 106.0031096 | V231: 110.059698
C232: 128.8 | D232: 809.2742676 | E232: 809.274267564731i | F232: 6.10604826397211+1.70502027573037i | G232: 0.0000749480945022584-0.000159508149625765i | H232: 0.129085840958997+0.0606535642836874i | I232: 0.1762386639 | J232: 0 | K232: 0.412785976013694+0.355917720575818i | L232: 0.5450409946 | M232: 75.80961363 | N232: 79.1065687 | O232: 83.55630374 | P232: 12.01171538 | Q232: 33.19246468 | R232: 3.76838066 | S232: 11.65420741 | T232: 102.4106851 | U232: 105.7076402 | V232: 110.1573752
C233: 131.8 | D233: 828.1238235 | E233: 828.12382348627i | F233: 5.78395445024549+1.47741220616952i | G233: 0.0000696063709248101-0.000166559530904418i | H233: 0.137931915570646+0.0576426940292573i | I233: 0.1805190411 | J233: 0 | K233: 0.410235479528466+0.309238150148798i | L233: 0.5137327926 | M233: 76.41803204 | N233: 78.79272205 | O233: 83.64006307 | P233: 13.07688396 | Q233: 34.50055572 | R233: 3.859904791 | S233: 10.98476734 | T233: 103.0191035 | U233: 105.3937935 | V233: 110.2411346
C234: 134.9 | D234: 847.6016979 | E234: 847.601697938526i | F234: 5.49971859326837+1.29284343435942i | G234: 0.000063171124759808-0.000172420882463275i | H234: 0.146144232735931+0.0535439526070997i | I234: 0.1836288423 | J234: 0 | K234: 0.403631059934026+0.265643487102432i | L234: 0.4832023332 | M234: 76.97025118 | N234: 78.46248752 | O234: 83.7113984 | P234: 14.35805903 | Q234: 35.28794618 | R234: 3.926399363 | S234: 10.33195717 | T234: 103.5713227 | U234: 105.063559 | V234: 110.3124699
C235: 138 | D235: 867.0795724 | E235: 867.079572390783i | F235: 5.25558900324028+1.14562343218418i | G235: 0.0000561419737307206-0.000176899524402461i | H235: 0.153385963975019+0.0486795585756078i | I235: 0.1855946199 | J235: 0 | K235: 0.394016562983573+0.226613267816894i | L235: 0.4545356147 | M235: 77.45742638 | N235: 78.12860815 | O235: 83.7700644 | P235: 15.84932835 | Q235: 35.43318171 | R235: 3.968432129 | S235: 9.718997986 | T235: 104.0584979 | U235: 104.7296796 | V235: 110.3711359
C236: 141.3 | D236: 887.8140839 | E236: 887.814083904476i | F236: 5.0315211338904+1.01914516738173i | G236: 0.0000483120863559495-0.000180264700830568i | H236: 0.160041540228205+0.0428921506896212i | I236: 0.1866264184 | J236: 0.1867549183 | K236: 0.381423864571996+0.189784738206766i | L236: 0.4260309981 | M236: 77.91610418 | N236: 77.7713353 | O236: 83.82118835 | P236: 17.69858795 | Q236: 34.78018885 | R236: 3.990494311 | S236: 9.109504906 | T236: 104.5171757 | U236: 104.3724068 | V236: 110.4222598
C237: 144.5 | D237: 907.9202769 | E237: 907.92027688745i | F237: 4.8430947770973+0.918869636386452i | G237: 0.0000406131698611199-0.000182285407966431i | H237: 0.165500618073424+0.036873520425585i | I237: 0.1867549183 | J237: 0 | K237: 0.367645608022906+0.158357992331127i | L237: 0.4003005706 | M237: 78.31111012 | N237: 77.4247492 | O237: 83.86170453 | P237: 19.77404681 | Q237: 33.22258584 | R237: 3.993241929 | S237: 8.559330256 | T237: 104.9121816 | U237: 104.0258207 | V237: 110.462776
C238: 147.9 | D238: 929.2831069 | E238: 929.283106931861i | F238: 4.66844283683737+0.830673085553902i | G238: 0.0000325150521676444-0.000183254945830778i | H238: 0.170295725422255+0.0302156887004001i | I238: 0.1861171776 | J238: 0 | K238: 0.351971321798693+0.129155616616236i | L238: 0.374919971 | M238: 78.68541139 | N238: 77.05780305 | O238: 83.89686053 | P238: 22.2863124 | Q238: 30.3982068 | R238: 3.979605592 | S238: 8.016635716 | T238: 105.2864829 | U238: 103.6588745 | V238: 110.497932
C239: 151.4 | D239: 951.2742555 | E239: 951.274255506989i | F239: 4.51136715223533+0.755105469237117i | G239: 0.0000244224970556312-0.000183162189032567i | H239: 0.174237475008986+0.0232324927042172i | I239: 0.1847832402 | J239: 0 | K239: 0.335270735634736+0.103122933106813i | L239: 0.3507717285 | M239: 79.02924185 | N239: 76.68267723 | O239: 83.92620777 | P239: 25.1407819 | Q239: 26.03337146 | R239: 3.951082998 | S239: 7.500291753 | T239: 105.6303133 | U239: 103.2837487 | V239: 110.5272793
C240: 154.9 | D240: 973.2654041 | E240: 973.265404082118i | F240: 4.37340072227224+0.691560962644497i | G240: 0.0000166890642719237-0.000182136246103706i | H240: 0.177266907162124+0.0162428888823663i | I240: 0.1828992537 | J240: 0 | K240: 0.318423753239322+0.0806982805008331i | L240: 0.3284903333 | M240: 79.33725065 | N240: 76.3111483 | O240: 83.94998783 | P240: 28.07392679 | Q240: 20.03847219 | R240: 3.910799112 | S240: 7.023865204 | T240: 105.9383221 | U240: 102.9122198 | V240: 110.5510593
C241: 158.5 | D241: 995.8848712 | E241: 995.884871187964i | F241: 4.24812616345273+0.636080701244154i | G241: 9.18558801441863E-06-0.000180275266661243i | H241: 0.179533410717308+0.009147788136525i | I241: 0.1805091322 | J241: 0 | K241: 0.301271521376224+0.0609255524112347i | L241: 0.3073702206 | M241: 79.6221095 | N241: 75.93348918 | O241: 83.96979741 | P241: 30.77291076 | Q241: 12.2119813 | R241: 3.859692915 | S241: 6.572269495 | T241: 106.223181 | U241: 102.5345607 | V241: 110.5708689
C242: 162.2 | D242: 1019.132657 | E242: 1019.13265682453i | F242: 4.13412475239761+0.587372102525722i | G242: 1.99708201114327E-06-0.000177671474210356i | H242: 0.181070801553931+0.00203529149591292i | I242: 0.1776826978 | J242: 0 | K242: 0.284077066565982+0.0436241530855593i | L242: 0.2874071093 | M242: 79.88589206 | N242: 75.5506352 | O242: 83.98622808 | P242: 32.63309782 | Q242: 2.860708621 | R242: 3.799257364 | S242: 6.14541309 | T242: 106.4869635 | U242: 102.1517067 | V242: 110.5872996
C243: 166 | D243: 1043.008761 | E243: 1043.00876099181i | F243: 4.0301606656543+0.544385859534072i | G243: -4.81102007963403E-06-0.000174419196626404i | H243: 0.181920750166493-0.00501793609236581i | I243: 0.1744855354 | J243: 0 | K243: 0.267056737204258+0.0286006660198322i | L243: 0.268583877 | M243: 80.1304674 | N243: 75.1634286 | O243: 83.99979775 | P243: 33.10911576 | Q243: -7.171591839 | R243: 3.730894813 | S243: 5.742929872 | T243: 106.7315389 | U243: 101.7645001 | V243: 110.6008692
C244: 169.8 | D244: 1066.884865 | E244: 1066.88486515909i | F244: 3.93745895255249+0.507175559876687i | G244: -0.0000110349441507959-0.000170714356400164i | H244: 0.18213256310871-0.01177301490236i | I244: 0.171070633 | J244: 0 | K244: 0.250801010469+0.0159605153643672i | L244: 0.2513083463 | M244: 80.35197196 | N244: 74.78256004 | O244: 84.01069982 | P244: 32.16180711 | Q244: -16.53019611 | R244: 3.657876487 | S244: 5.373540009 | T244: 106.9530434 | U244: 101.3836315 | V244: 110.6117713
C245: 173.8 | D245: 1092.017606 | E245: 1092.01760638781i | F245: 3.85022573335568+0.473094739284828i | G245: -0.0000169699237506322-0.000166449950217702i | H245: 0.181766276220105-0.018531455514749i | I245: 0.1673127737 | J245: 0 | K245: 0.234588494464822+0.00484743722189768i | L245: 0.2346385718 | M245: 80.56352814 | N245: 74.38865165 | O245: 84.01988578 | P245: 30.1663659 | Q245: -24.83879168 | R245: 3.577524968 | S245: 5.017102583 | T245: 107.1645996 | U245: 100.9897231 | V245: 110.6209573
C246: 177.8 | D246: 1117.150348 | E246: 1117.15034761653i | F246: 3.77206279280916+0.443303124149127i | G246: -0.0000222993457461445-0.000161919336638945i | H246: 0.180888243212035-0.0249117218519265i | I246: 0.1634476442 | J246: 0 | K246: 0.219330264538594-0.00435906921514181i | L246: 0.2193735773 | M246: 80.75579885 | N246: 74.00198955 | O246: 84.02720627 | P246: 27.78284806 | Q246: -31.33729437 | R246: 3.49487977 | S246: 4.690702526 | T246: 107.3568703 | U246: 100.603061 | V246: 110.6282778
C247: 182 | D247: 1143.539726 | E247: 1143.53972590668i | F247: 3.69835255182556+0.415832755351429i | G247: -0.0000272813000746012-0.000156973856819101i | H247: 0.179505841201429-0.0311972504096873i | I247: 0.1593269 | J247: 0 | K247: 0.204337859096771-0.0122974345230471i | L247: 0.2047075659 | M247: 80.93959292 | N247: 73.60377372 | O247: 84.03330464 | P247: 25.32165483 | Q247: -36.41290582 | R247: 3.406768952 | S247: 4.37711008 | T247: 107.5406644 | U247: 100.2048452 | V247: 110.6343761
C248: 186.2 | D248: 1169.929104 | E248: 1169.92910419684i | F248: 3.63201142963711+0.391608354080216i | G248: -0.000031678247437548-0.000151918023609347i | H248: 0.177733317272638-0.0370613036471364i | I248: 0.1551856864 | J248: 0 | K248: 0.19037628477829-0.018749466866096i | L248: 0.1912973401 | M248: 81.10717557 | N248: 73.21344023 | O248: 84.03811636 | P248: 23.1121788 | Q248: -40.06424642 | R248: 3.318220453 | S248: 4.090369165 | T248: 107.7082471 | U248: 99.81451172 | V248: 110.6391878
C249: 190.5 | D249: 1196.946801 | E249: 1196.94680101771i | F249: =IMPRODUCT(IMDIV(COMPLEX(0,Sd*Dbl/Sp*D249),COMPLEX(Kbp,Dbl*D249)),IMSUM(IMDIV(IMPRODUCT(COMPLEX(Kbp,0),IMSUB(COMPLEX(1,0),IMDIV(COMPLEX(Kbp,0),COMPLEX(Kbp,Dbl*D249)))),IMSUB(Mp*D249^2,IMPRODUCT(COMPLEX(Kbp,0),IMSUB(COMPLEX(1,0),IMDIV(COMPLEX(Kbp,0),COMPLEX(Kbp,Dbl*D249)))))),COMPLEX(1,0))) -> 3.57067970103897+0.369618005071365i | G249: =IMDIV(COMPLEX(Bl,0),IMPRODUCT(COMPLEX(Re,Le*D249),IMSUM(COMPLEX(Kd-Md*D249^2,0),IMPRODUCT(E249,IMSUM(COMPLEX(Dd,0),IMDIV(COMPLEX(Bl^2,0),COMPLEX(Re,Le*D249)))),IMPRODUCT(COMPLEX(Sd*Kbp/Sp,0),F249)))) -> -0.0000356222834193161-0.000146697370859512i | H249: =IMPRODUCT(E249,G249) -> 0.175588948768002-0.0426379781836966i | I249: 0.1509604773 | J249: =IF(AND(I250>I249,I250>I251),I250,0) -> 0 | K249: =IMPRODUCT(E249,IMPRODUCT(IMDIV(COMPLEX(0,Sd*Kbp*Dbl/Sp*D249),IMPRODUCT(COMPLEX(Kbp,Dbl*D249),IMSUB(COMPLEX(Mp*D249^2,0),IMPRODUCT(COMPLEX(Kbp,0),IMSUB(COMPLEX(1,0),IMDIV(COMPLEX(Kbp,0),COMPLEX(Kbp,Dbl*D249))))))),G249)) -> 0.177108633731983-0.0240686482561188i | L249: 0.1787365882 | M249: =79.6+20*LOG10(IMABS(IMPRODUCT(COMPLEX(Sd*D249,0),H249))) -> 81.26401968 | N249: =79.6+20*LOG10(IMABS(IMPRODUCT(COMPLEX(Sp*D249,0),K249))) -> 72.82183695 | O249: =79.6+20*LOG10(IMABS(IMSUM(IMPRODUCT(COMPLEX(Sd*D249,0),H249),IMPRODUCT(COMPLEX(Sp*D249,0),K249)))) -> 84.04199069 | P249: =IMABS(IMDIV(COMPLEX(Re,D249*Le),IMSUB(COMPLEX(1,0),IMPRODUCT(COMPLEX(Bl,0),H249)))) -> 21.16516545 | Q249: =180/PI()*IMARGUMENT(IMDIV(COMPLEX(Re,D249*Le),IMSUB(COMPLEX(1,0),IMPRODUCT(COMPLEX(Bl,0),H249)))) -> -42.69658267 | R249: =MaxV*I249 -> 3.227875939 | S249: =MaxV*L249 -> 3.821791923 | T249: =20*LOG10(MaxV)+M249 -> 107.8650912 | U249: =20*LOG10(MaxV)+N249 -> 99.42290844 | V249: =20*LOG10(MaxV)+O249 -> 110.6430622
C250: 195 | D250: =2*PI()*C250 -> 1225.221135 | E250: =COMPLEX(0,2*PI()*C250) -> 1225.22113490002i | F250: 3.51267587240923+0.349163652412284i | G250: -0.0000391991501413548-0.000141246531946844i | H250: 0.173058236172604-0.048027627223307i | I250: 0.1465849793 | J250: 0 | K250: 0.164277973034369-0.0284759609557714i | L250: =IMABS(K250) -> 0.1667277205 | M250: 81.41412913 | N250: 72.42051655 | O250: 84.04514743 | P250: 19.44804148 | Q250: -44.57669968 | R250: 3.134317911 | S250: 3.565015209 | T250: 108.0152006 | U250: 99.02158804 | V250: 110.6462189
C251: 199.5 | D251: 1253.495469 | E251: 1253.49546878233i | F251: 3.46016024179956+0.330918589244343i | G251: -0.0000422669815335232-0.000135857697577387i | H251: 0.170297008312455-0.0529814698313777i | I251: =1000*IMABS(G251) -> 0.1422807496 | J251: 0 | K251: 0.15245821086874-0.0319017920036549i | L251: 0.1557601695 | M251: 81.55159417 | N251: 72.02765429 | O251: 84.04758248 | P251: 18.0107114 | Q251: -45.81024168 | R251: 3.04228376 | S251: 3.330504199 | T251: 108.1526657 | U251: 98.62872578 | V251: 110.648654
C252: 204.2 | D252: 1283.02644 | E252: 1283.02643972607i | F252: 3.41040721902161+0.313860749851324i | G252: -0.0000449838677522589-0.000130336276845596i | H252: 0.167224889248356-0.0577154916872891i | I252: 0.1378807217 | J252: 0 | K252: 0.141115803434366-0.0346177866100861i | L252: 0.1452999006 | M252: 81.68325574 | N252: 71.62608917 | O252: 84.0495226 | P252: 16.753793 | Q252: -46.60152165 | R252: 2.948201226 | S252: 3.106840027 | T252: 108.2843272 | U252: 98.22716066 | V252: 110.6505941
C253: 208.9 | D253: 1312.557411 | E253: 1312.55741066982i | F253: 3.3652005575781+0.298542086740046i | G253: -0.0000472569332717846-0.000124955076020596i | H253: 0.164010711031644-0.0620274379714101i | I253: 0.1335926224 | J253: 0 | K253: 0.130718850542801-0.0366117234769888i | L253: 0.1357491664 | M253: 81.80414238 | N253: 71.2331803 | O253: 84.05098062 | P253: 15.69775591 | Q253: -47.02541567 | R253: 2.856511979 | S253: 2.90262376 | T253: 108.4052139 | U253: 97.83425179 | V253: 110.6520521
C254: 213.8 | D254: 1343.345019 | E254: 1343.345018675i | F254: 3.32230335785298+0.284153980864246i | G254: -0.0000492084080777787-0.000119518179866701i | H254: 0.160554151565035-0.0661038698682107i | I254: 0.1292519352 | J254: 0 | K254: 0.120802441331857-0.0380646100800488i | L254: 0.1266575871 | M254: 81.92000439 | N254: 70.83244629 | O254: 84.05210095 | P254: 14.7677036 | Q254: -47.18422886 | R254: 2.763698282 | S254: 2.708225261 | T254: 108.5210759 | U254: 97.43351778 | V254: 110.6531724
C255: 218.8 | D255: 1374.760945 | E255: 1374.76094521089i | F255: 3.28243624094837+0.27090113415308i | G255: -0.0000508122622254756-0.000114169884125059i | H255: 0.156956297814384-0.0698547136453984i | I255: 0.1249665893 | J255: 0 | K255: 0.111569747514174-0.0390141181791702i | L255: 0.1181943737 | M255: 82.02872632 | N255: 70.4325505 | O255: 84.05291757 | P255: 13.96252798 | Q255: -47.13016025 | R255: 2.672067909 | S255: 2.527262645 | T255: 108.6297978 | U255: 97.03362199 | V255: 110.6539891
C256: 223.9 | D256: 1406.80519 | E256: 1406.80519027751i | F256: 3.24534055003011+0.258662860135803i | G256: -0.0000520955933812524-0.000108933441737333i | H256: 0.153248131230873-0.0732883511593326i | I256: 0.1207495159 | J256: 0 | K256: 0.10298960448499-0.0395374573898343i | L256: 0.1103180365 | M256: 82.13082698 | N256: 70.03368041 | O256: 84.05348817 | P256: 13.26128403 | Q256: -46.91223304 | R256: 2.581897355 | S256: 2.358848767 | T256: 108.7318985 | U256: 96.6347519 | V256: 110.6545597
C257: 229.1 | D257: 1439.477754 | E257: 1439.47775387484i | F257: 3.21078383825288+0.247334097786965i | G257: -0.0000530851668068815-0.000103827682677912i | H257: 0.14945763945123-0.076414916679241i | I257: 0.1166114172 | J257: 0 | K257: 0.0950288630091564-0.0397025098427791i | L257: 0.1029891941 | M257: 82.22678031 | N257: 69.63600305 | O257: 84.05386031 | P257: 12.64696047 | Q257: -46.56788416 | R257: 2.49341546 | S257: 2.202141564 | T257: 108.8278518 | U257: 96.23707454 | V257: 110.6549318
C258: 234.4 | D258: 1472.778636 | E258: 1472.7786360029i | F258: 3.17855677973817+0.236823068340312i | G258: -0.0000538070580656974-0.0000988675061328398i | H258: 0.145609950827332-0.0792458855853267i | I258: 0.1125610202 | J258: 0 | K258: 0.0876533124616367-0.0395687033988792i | L258: 0.09617060608 | M258: 82.31701998 | N258: 69.23966728 | O258: 84.05407312 | P258: 12.10575315 | Q258: -46.12597187 | R258: 2.406808824 | S258: 2.056344754 | T258: 108.9180915 | U258: 95.84073877 | V258: 110.6551446
C259: 239.9 | D259: 1507.336155 | E259: 1507.33615519238i | F259: 3.14793744287445+0.226876452164267i | G259: -0.0000542930642407936-0.0000939777550951484i | H259: 0.141656068038732-0.0818378987063307i | I259: 0.1085336597 | J259: 0 | K259: 0.0807081338602361-0.0391788504762312i | L259: 0.08971502213 | M259: 82.40345414 | N259: 68.8375764 | O259: 84.05415933 | P259: 11.61815524 | Q259: -45.59887294 | R259: 2.32069476 | S259: 1.918309789 | T259: 109.0045256 | U259: 95.43864789 | V259: 110.6552308
C260: 245.5 | D260: 1542.521993 | E260: 1542.52199291259i | F260: 3.11937611016897+0.217625686037392i | G260: -0.0000545527123245277-0.0000892627130994245i | H260: 0.137689698102909-0.0841487585336177i | I260: 0.1046127639 | J260: 0 | K260: 0.0743018132799625-0.0385806947972206i | L260: 0.0837211411 | M260: 82.48470866 | N260: 68.43740078 | O260: 84.05414148 | P260: 11.1853303 | Q260: -45.01281834 | R260: 2.236857154 | S260: 1.790147076 | T260: 109.0857802 | U260: 95.03847227 | V260: 110.655213
C261: 251.2 | D261: 1578.336149 | E261: 1578.33614916351i | F261: 3.09270543737946+0.209003642265961i | G261: -0.0000546102833500201-0.0000847279114046926i | H261: 0.13372912541315-0.0861933843273989i | I261: 0.1008022917 | J261: 0 | K261: 0.0683977298402227-0.0378154403587451i | L261: 0.07815533876 | M261: 82.56114879 | N261: 68.03923377 | O261: 84.05404239 | P261: 10.79925526 | Q261: -44.38246552 | R261: 2.155380653 | S261: 1.671137652 | T261: 109.1622203 | U261: 94.64030526 | V261: 110.6551139
C262: 257 | D262: 1614.778624 | E262: 1614.77862394515i | F262: 3.06777428005181+0.200951205953289i | G262: -0.0000544884732459598-0.0000803764973374774i | H262: 0.129790249768143-0.0879868218489831i | I262: 0.09710496919 | J262: 0 | K262: 0.0629605668516945-0.0369183790579604i | L262: 0.07298629796 | M262: 82.6331093 | N262: 67.64315725 | O262: 84.05388056 | P262: 10.45333094 | Q262: -43.71939797 | R262: 2.076323547 | S262: 1.560611886 | T262: 109.2341808 | U262: 94.24422874 | V262: 110.654952
C263: 263 | D263: 1652.477736 | E263: 1652.47773578823i | F263: 3.04406680214093+0.193293681527987i | G263: -0.0000542024212412038-0.0000761411610648951i | H263: 0.125821573436805-0.0895682943269043i | I263: 0.0934632488 | J263: 0 | K263: 0.0578759646735879-0.0359021174427375i | L263: 0.06810718996 | M263: 82.70200268 | N263: 67.24264228 | O263: 84.05366712 | P263: 10.13713239 | Q263: -43.02113216 | R263: 1.998455341 | S263: 1.456285537 | T263: 109.3030742 | U263: 93.84371377 | V263: 110.6547386
C264: 269.2 | D264: 1691.433485 | E264: 1691.43348469274i | F264: 3.02154956002037+0.186013595108906i | G264: -0.0000537653928006265-0.0000720340370643756i | H264: 0.121840782328283-0.0909405857006376i | I264: 0.08988670624 | J264: 0 | K264: 0.0531352799671753-0.0347898683844473i | L264: 0.06351136055 | M264: 82.76786683 | N264: 66.83819751 | O264: 84.05341287 | P264: 9.847769213 | Q264: -42.29496879 | R264: 1.921980783 | S264: 1.358016325 | T264: 109.3689383 | U264: 93.439269 | V264: 110.6544844
C265: 275.4 | D265: 1730.389234 | E265: 1730.38923359726i | F265: 3.00082576160608+0.179301043917995i | G265: -0.0000532107337975697-0.0000681849981682929i | H265: 0.117986586723263-0.0920752808751245i | I265: 0.08649032412 | J265: 0 | K265: 0.0488582769082551-0.0336404797207084i | L265: 0.05931958444 | M265: 82.8288632 | N265: 66.44290879 | O265: 84.05313638 | P265: 9.590467827 | Q265: -41.57057366 | R265: 1.849358463 | S265: 1.268386685 | T265: 109.4299347 | U265: 93.04398028 | V265: 110.6542079
C266: 281.8 | D266: 1770.60162 | E266: 1770.60161956321i | F266: 2.9811117144324+0.172898568244865i | G266: -0.0000525385199564637-0.0000644658167671912i | H266: 0.114143279574454-0.0930247885243687i | I266: 0.0831633189 | J266: 0 | K266: 0.0448749724359275-0.0324364758930091i | L266: 0.05537046252 | M266: 82.88723108 | N266: 66.04405087 | O266: 84.05283719 | P266: 9.353385611 | Q266: -40.8296603 | R266: 1.778219578 | S266: 1.18394554 | T266: 109.4883026 | U266: 92.64512236 | V266: 110.6539087
C267: 288.4 | D267: 1812.070643 | E267: 1812.07064259059i | F267: 2.96237682115568+0.166792837608609i | G267: -0.0000517609848569371-0.0000608830384816637i | H267: 0.110324366664336-0.0937945610908318i | I267: 0.07991210126 | J267: 0 | K267: 0.0411744417537887-0.0311938553750849i | L267: 0.05165647362 | M267: 82.94301653 | N267: 65.6420683 | O267: 84.05252158 | P267: 9.134746322 | Q267: -40.0767388 | R267: 1.708701202 | S267: 1.104532069 | T267: 109.544088 | U267: 92.24313979 | V267: 110.6535931
C268: 295.1 | D268: 1854.167984 | E268: 1854.1679841487i | F268: 2.94483918676587+0.161052864644433i | G268: -0.0000509035286557409-0.0000574902954854953i | H268: 0.106596665288454-0.0943836931136707i | I268: 0.07678739027 | J268: 0 | K268: 0.0377923342381319-0.0299454629806978i | L268: 0.04821816339 | M268: 82.99552181 | N268: 65.24326555 | O268: 84.05219972 | P268: 8.935747731 | Q268: -39.32685048 | R268: 1.641887824 | S268: 1.031013231 | T268: 109.5965933 | U268: 91.84433704 | V268: 110.6532712
C269: 302 | D269: 1897.521963 | E269: 1897.52196276823i | F269: 2.92817348664694+0.155570871415091i | G269: -0.0000499662171661789-0.0000542350577035322i | H269: 0.102912213144455-0.0948119944692714i | I269: 0.07374323252 | J269: 0 | K269: 0.0346579973007695-0.0286846877048045i | L269: 0.0449887551 | M269: 83.04567641 | N269: 64.84188645 | O269: 84.05187125 | P269: 8.75154349 | Q269: -38.57187036 | R269: 1.576796856 | S269: 0.9619611886 | T269: 109.6467479 | U269: 91.44295794 | V269: 110.6529427
C270: 309 | D270: 1941.50426 | E270: 1941.50425991849i | F270: 2.91256244140427+0.150406321604286i | G270: -0.0000489744070654853-0.0000511618167900106i | H270: 0.0993308852429749-0.0950840199446219i | I270: 0.07082389459 | J270: 0 | K270: 0.0317978072405343-0.0274398207179801i | L270: 0.04200052745 | M270: 83.09289055 | N270: 64.44393255 | O270: 84.05154445 | P270: 8.583184948 | Q270: -37.82528819 | R270: 1.514374818 | S270: 0.8980661328 | T270: 109.693962 | U270: 91.04500404 | V270: 110.6526159
C271: 316.2 | D271: 1986.743194 | E271: 1986.74319413019i | F271: 2.89772643620832+0.145466651863101i | G271: -0.0000479248842701513-0.0000482230763952257i | H271: 0.0958068688282349-0.0952144376532001i | I271: 0.06798720195 | J271: 0 | K271: 0.0291523813610024-0.0262014698443499i | L271: 0.03919666263 | M271: 83.13797326 | N271: 64.0438872 | O271: 84.0512175 | P271: 8.426822937 | Q271: -37.07857702 | R271: 1.453719923 | S271: 0.8381131704 | T271: 109.7390447 | U271: 90.64495869 | V271: 110.652289
C272: 323.6 | D272: 2033.238765 | E272: 2033.23876540331i | F272: =IMPRODUCT(IMDIV(COMPLEX(0,Sd*Dbl/Sp*D272),COMPLEX(Kbp,Dbl*D272)),IMSUM(IMDIV(IMPRODUCT(COMPLEX(Kbp,0),IMSUB(COMPLEX(1,0),IMDIV(COMPLEX(Kbp,0),COMPLEX(Kbp,Dbl*D272)))),IMSUB(Mp*D272^2,IMPRODUCT(COMPLEX(Kbp,0),IMSUB(COMPLEX(1,0),IMDIV(COMPLEX(Kbp,0),COMPLEX(Kbp,Dbl*D272)))))),COMPLEX(1,0))) -> 2.88363608392821+0.140741823512791i | G272: =IMDIV(COMPLEX(Bl,0),IMPRODUCT(COMPLEX(Re,Le*D272),IMSUM(COMPLEX(Kd-Md*D272^2,0),IMPRODUCT(E272,IMSUM(COMPLEX(Dd,0),IMDIV(COMPLEX(Bl^2,0),COMPLEX(Re,Le*D272)))),IMPRODUCT(COMPLEX(Sd*Kbp/Sp,0),F272)))) -> -0.0000468272209423538-0.0000454190574085644i | H272: 0.0923477882111715-0.0952109208960995i | I272: 0.0652355685 | J272: 0 | K272: =IMPRODUCT(E272,IMPRODUCT(IMDIV(COMPLEX(0,Sd*Kbp*Dbl/Sp*D272),IMPRODUCT(COMPLEX(Kbp,Dbl*D272),IMSUB(COMPLEX(Mp*D272^2,0),IMPRODUCT(COMPLEX(Kbp,0),IMSUB(COMPLEX(1,0),IMDIV(COMPLEX(Kbp,0),COMPLEX(Kbp,Dbl*D272))))))),G272)) -> 0.0267098637108968-0.0249774679259036i | L272: 0.03656898581 | M272: =79.6+20*LOG10(IMABS(IMPRODUCT(COMPLEX(Sd*D272,0),H272))) -> 83.18098482 | N272: =79.6+20*LOG10(IMABS(IMPRODUCT(COMPLEX(Sp*D272,0),K272))) -> 63.64209665 | O272: 84.05089284 | P272: 8.281505829 | Q272: -36.33397084 | R272: =MaxV*I272 -> 1.394883785 | S272: =MaxV*L272 -> 0.7819275057 | T272: 109.7820563 | U272: 90.24316814 | V272: 110.6519643
C273: 331.1 | D273: 2080.362655 | E273: 2080.36265520716i | F273: 2.87043065033189+0.136279405757422i | G273: -0.0000457054475783731-0.0000427828020017066i | H273: 0.0890037435694725-0.0950839062815759i | I273: 0.06260476088 | J273: 0 | K273: 0.0244863525926859-0.023789931501503i | L273: 0.0341400396 | M273: 83.22146973 | N273: 63.2441321 | O273: 84.05057662 | P273: 8.148054798 | Q273: -35.60300707 | R273: 1.338631177 | S273: 0.7299911501 | T273: 109.8225412 | U273: 89.84520359 | V273: 110.6516481
C274: 338.8 | D274: 2128.743182 | E274: 2128.74318207244i | F274: 2.8578852142422+0.132004641455266i | G274: -0.0000445529756973898-0.0000402738135628294i | H274: 0.0857326060379296-0.0948418432568577i | I274: 0.06005786961 | J274: 0 | K274: 0.0224360781897366-0.0226274342472522i | L274: 0.03186500251 | M274: 83.2600898 | N274: 62.84481525 | O274: 84.05026595 | P274: 8.023664883 | Q274: -34.87714955 | R274: 1.28417289 | S274: 0.681345719 | T274: 109.8611613 | U274: 89.44588674 | V274: 110.6513374
... 47 more rows
